Workbook

Sheet Pay (hidden)
B2: Presented By :- VIJAY RANWA, TEACHER, GSS DHANERU
B3: 7th Pay Commission Calculator- http://www.vijayranwa.jimdo.com
B4: SALARY Calculator of 7'th Pay Commission
B6: Name of employee :- | D6: VIJAY RANWA | E6: vijay ranwa | H6: fot; j.koka
B7: Designation of employee :- | D7: TEACHER | E7: teacher | H7: v/;kid | J7: Fix Pay
B8: Name of Department / Office :- | D8: GOVT SEC SCHOOL DHANERU
B9: Existing Runnning Pay Band :- | E9: 9300-34800 (PB-2) | H9: VIJAYSALASAR2011@GMAIL.COM
B10: Grade Pay :- | E10: =ENTRY!C15 -> 4200 | H10: WHAT. 9828113904
B11: Fix Pay /Regular Pay :- | E11: Regular
B12: 7th Pay Calculations Option Date | E12: 2016-01-01 | F12: Present Pay (6th) Calculations
B13: 31 Dec. 2015 Basic | E13: ='G.A. 55'!C15 -> 21930
B14: 7th pay (Oct 2017 Basic) | C14: 2.57 | D14: =IF(AND(E11=J7),"0",E13*C14) -> 56360.1 | E14: =ROUND(D14,0) -> 56360
B15: Basic Acco.to Matrix | E15: =IF(AND(E11=J7),F44,E45) -> 57200
B16: New Basic | E16: =E15 -> 57200 | F16: Basic 1 JAN. 2016 | I16: =E13 -> 21930
B17: DA 5% | D17: =IF(AND(D11=J7),"0",E16*C17/100) -> 0 | E17: =ROUND(D17,0) -> 0 | G17: 125 | H17: =I16*G17/100 -> 27412.5 | I17: =ROUND(H17,0) -> 27413
B18: Basic +DA | E18: =SUM(E16:E17) -> 57200 | I18: =SUM(I16:I17) -> 49343
B19: HRA | C19: 8 | D19: =IF(AND(D11=J7),"0",E16*C19/100) -> 4576 | E19: =ROUND(D19,0) -> 4576 | F19: 10 | H19: =I16*F19/100 -> 2193 | I19: =ROUND(H19,0) -> 2193
B20: CCA | E20: =C20 -> 0 | F20: CCA | I20: =H20 -> 0
B21: Washing All. | E21: =C21 -> 0 | F21: Washing All. | I21: =H21 -> 0
B22: Ph. Allowace | E22: =C22 -> 0 | F22: Ph. Allowace | I22: =H22 -> 0
B23: OTHER | E23: =C23 -> 0 | F23: OTHER | I23: =H23 -> 0
B24: Gross Pay | E24: =SUM(E18:E23) -> 61776 | I24: =SUM(I18:I23) -> 51536
B25: DEDUCTION | F25: DEDUCTION
B26: NPS Ded. | C26: 10 | D26: =IF(AND(D11=J7),"0",IF(AND(D28>0),0,E18*C26/100)) -> 5720 | E26: =IF(AND(D26=""),"0",ROUND(D26,0)) -> 5720 | F26: NPS Ded. | G26: 10 | H26: =IF(AND(D11=J7),"0",IF(AND(H28>0),0,I18*G26/100)) -> 4934.3 | I26: =IF(AND(H26=""),"0",ROUND(H26,0)) -> 4934
B27: SI Ded | C27: 2650 | E27: =C27 -> 2650 | F27: SI Ded. | H27: 2650 | I27: =H27 -> 2650
B28: GPF | E28: =C28 -> 0 | F28: GPF | I28: =IF(AND(I9=""),"",IF(AND(I9="GPF"),H28,IF(AND(I9="NPS"),"0"))) -> 
B29: RPMF | E29: =C29 -> 0 | F29: RPMF | I29: =IF(AND(I9=""),"",IF(AND(I9="GPF"),H29,IF(AND(I9="NPS"),"0"))) -> 
B30: LIC | E30: =C30 -> 0 | F30: LIC | I30: =H30 -> 0
B31: Income Tax | E31: =C31 -> 0 | F31: Income Tax | I31: =H31 -> 0
B32: Other Ded. | E32: 0 | F32: Other Ded. | I32: =H32 -> 0
B33: Total Deduction | E33: =SUM(E26:E32) -> 8370 | F33: Total Deduction | I33: =SUM(I26:I32) -> 7584
B34: Net Pay | E34: =E24-E33 -> 53406 | F34: Net Pay | I34: =I24-I33 -> 43952
F36: Difference | G36: =E34-I34 -> 9454 | H36: =G36 -> 9454
K41: PB-1 | T41: PB-3 | AA41: PB-4
F42: =E10 -> 4200 | H42: PB2 | K42: 1700 | L42: 1750 | M42: 1900 | N42: 2000 | O42: 2400A | P42: 2400B | Q42: 2400C | R42: 2800A | S42: 2800B | T42: 5400B | U42: 6000 | V42: 6600 | W42: 6800 | X42: 7200 | Y42: 7600 | Z42: 8200 | AA42: 8700 | AB42: 8900 | AC42: 9500 | AD42: 10000
G43: 4200 | H43: 4800 | I43: 3600 | J43: 5400A | K43: 1 | L43: 2 | M43: 3 | N43: 4 | O43: 5 | P43: 6 | Q43: 7 | R43: 8 | S43: 9 | T43: 14 | U43: 15 | V43: 16 | W43: 17 | X43: 18 | Y43: 19 | Z43: 20 | AA43: 21 | AB43: 22 | AC43: 23 | AD43: 24
D44: =F44 -> 26500 | E44: =E14 -> 56360 | F44: =IF($F$42=4200,G44,IF($F$42=4800,H44,IF($F$42="5400A",J44,IF($F$42=3600,I44,IF($F$42=1700,K44,IF($F$42=1750,L44,IF($F$42=1900,M44,IF($F$42=2000,N44,IF($F$42="2400A",O44,IF($F$42="2400B",P44,IF($F$42="2400C",Q44,IF($F$42="2800A",R44,IF($F$42="2800B",S44,IF($F$42="5400B",T44,IF($F$42=6000,U44,IF($F$42=6600,V44,IF($F$42=6800,W44,IF($F$42=7200,X44,IF($F$42=7600,Y44,IF($F$42=8200,Z44,IF($F$42=8700,AA44,IF($F$42=8900,IF($F$42=9500,AC44,IF($F$42=10000,AD44,"")))))))))))))))))))))))) -> 26500 | G44: 26500 | H44: 31100 | I44: 23700 | J44: 39300 | K44: 12400 | L44: 12600 | M44: 12800 | N44: 13500 | O44: 14600 | P44: 15100 | Q44: 15700 | R44: 18500 | S44: 20100 | T44: 39300 | U44: 42500 | V44: 47200 | W44: 49700 | X44: 52800 | Y44: 58000 | Z44: 62300 | AA44: 86200 | AB44: 90800 | AC44: 102100 | AD44: 104200
D45: 37800 | E45: =IF(AND(E44<=F44),F44,INDEX($D$44:$D$83,MATCH(E44,$F$44:$F$83)+(LOOKUP(E44,$F$44:$F$83)<>E44))) -> 57200 | F45: =IF($F$42=4200,G45,IF($F$42=4800,H45,IF($F$42="5400A",J45,IF($F$42=3600,I45,IF($F$42=1700,K45,IF($F$42=1750,L45,IF($F$42=1900,M45,IF($F$42=2000,N45,IF($F$42="2400A",O45,IF($F$42="2400B",P45,IF($F$42="2400C",Q45,IF($F$42="2800A",R45,IF($F$42="2800B",S45,IF($F$42="5400B",T45,IF($F$42=6000,U45,IF($F$42=6600,V45,IF($F$42=6800,W45,IF($F$42=7200,X45,IF($F$42=7600,Y45,IF($F$42=8200,Z45,IF($F$42=8700,AA45,IF($F$42=8900,IF($F$42=9500,AC45,IF($F$42=10000,AD45,"")))))))))))))))))))))))) -> 37800 | G45: 37800 | H45: 44300 | I45: 33800 | J45: 53100 | K45: 17700 | L45: 17900 | M45: 18200 | N45: 19200 | O45: 20800 | P45: 21500 | Q45: 22400 | R45: 25300 | S45: 28700 | T45: 56100 | U45: 60700 | V45: 67300 | W45: 71000 | X45: 75300 | Y45: 79900 | Z45: 88900 | AA45: 123100 | AB45: 129700 | AC45: 145800 | AD45: 148800
C46: =IF(AND(E44<=F44),F44,INDEX($D$44:$D$83,MATCH(E44,$F$44:$F$83)+(LOOKUP(E44,$F$44:$F$83)<>E44))) -> 57200 | D46: 38900 | F46: 38900 | G46: 38900 | H46: 45600 | I46: 34800 | J46: 54700 | K46: 18200 | L46: 18400 | M46: 18700 | N46: 19800 | O46: 21400 | P46: 22100 | Q46: 23100 | R46: 27100 | S46: 29600 | T46: 57800 | U46: 62500 | V46: 69300 | W46: 73100 | X46: 77600 | Y46: 82300 | Z46: 91600 | AA46: 126800 | AB46: 133600 | AC46: 150200 | AD46: 153300
D47: 40100 | F47: 40100 | G47: 40100 | H47: 47000 | I47: 35800 | J47: 56300 | K47: 18700 | L47: 19000 | M47: 19300 | N47: 20400 | O47: 22000 | P47: 22800 | Q47: 23800 | R47: 27900 | S47: 30500 | T47: 59500 | U47: 64400 | V47: 71400 | W47: 75300 | X47: 79900 | Y47: 84800 | Z47: 94300 | AA47: 130600 | AB47: 137600 | AC47: 154700 | AD47: 157900
D48: 41300 | F48: 41300 | G48: 41300 | H48: 48400 | I48: 36900 | J48: 58000 | K48: 19300 | L48: 19600 | M48: 19900 | N48: 21000 | O48: 22700 | P48: 23500 | Q48: 24500 | R48: 28700 | S48: 31400 | T48: 61300 | U48: 66300 | V48: 73500 | W48: 77600 | X48: 82300 | Y48: 87300 | Z48: 97100 | AA48: 134500 | AB48: 141700 | AC48: 159300 | AD48: 162600
D49: 42500 | F49: 42500 | G49: 42500 | H49: 49900 | I49: 38000 | J49: 59700 | K49: 19900 | L49: 20200 | M49: 20500 | N49: 21600 | O49: 23400 | P49: 24200 | Q49: 25200 | R49: 29600 | S49: 32300 | T49: 63100 | U49: 68300 | V49: 75700 | W49: 79900 | X49: 84800 | Y49: 89900 | Z49: 100000 | AA49: 138500 | AB49: 146000 | AC49: 164100 | AD49: 167500
D50: 43800 | F50: 43800 | G50: 43800 | H50: 51400 | I50: 39100 | J50: 61500 | K50: 20500 | L50: 20800 | M50: 21100 | N50: 22200 | O50: 24100 | P50: 24900 | Q50: 26000 | R50: 30500 | S50: 33300 | T50: 65000 | U50: 70300 | V50: 78000 | W50: 82300 | X50: 87300 | Y50: 92600 | Z50: 103000 | AA50: 142700 | AB50: 150400 | AC50: 169000 | AD50: 172500
D51: 45100 | F51: 45100 | G51: 45100 | H51: 52900 | I51: 40300 | J51: 63300 | K51: 21100 | L51: 21400 | M51: 21700 | N51: 22900 | O51: 24800 | P51: 25600 | Q51: 26800 | R51: 31400 | S51: 34300 | T51: 67000 | U51: 72400 | V51: 80300 | W51: 84800 | X51: 89900 | Y51: 95400 | Z51: 106100 | AA51: 147000 | AB51: 154900 | AC51: 174100 | AD51: 177700
D52: 46500 | F52: 46500 | G52: 46500 | H52: 54500 | I52: 41500 | J52: 65200 | K52: 21700 | L52: 22000 | M52: 22400 | N52: 23600 | O52: 25500 | P52: 26400 | Q52: 27600 | R52: 32300 | S52: 35300 | T52: 69000 | U52: 74600 | V52: 82700 | W52: 87300 | X52: 92600 | Y52: 98300 | Z52: 109300 | AA52: 151400 | AB52: 159500 | AC52: 179300 | AD52: 183000
D53: 47900 | F53: 47900 | G53: 47900 | H53: 56100 | I53: 42700 | J53: 67200 | K53: 22400 | L53: 22700 | M53: 23100 | N53: 24300 | O53: 26300 | P53: 27200 | Q53: 28200 | R53: 33300 | S53: 36400 | T53: 71100 | U53: 76800 | V53: 85200 | W53: 89900 | X53: 95400 | Y53: 101200 | Z53: 112600 | AA53: 155900 | AB53: 164300 | AC53: 184700 | AD53: 188500
D54: 49300 | F54: 49300 | G54: 49300 | H54: 57800 | I54: 44000 | J54: 69200 | K54: 23100 | L54: 23400 | M54: 23800 | N54: 25000 | O54: 27100 | P54: 28000 | Q54: 29300 | R54: 34300 | S54: 37500 | T54: 73200 | U54: 79100 | V54: 87800 | W54: 92600 | X54: 98300 | Y54: 104200 | Z54: 116000 | AA54: 160600 | AB54: 169200 | AC54: 190200 | AD54: 194200
D55: 50800 | F55: 50800 | G55: 50800 | H55: 59500 | I55: 45300 | J55: 71300 | K55: 23800 | L55: 24100 | M55: 24500 | N55: 25800 | O55: 27900 | P55: 28800 | Q55: 30200 | R55: 35300 | S55: 38600 | T55: 75400 | U55: 81500 | V55: 90400 | W55: 95400 | X55: 101200 | Y55: 107300 | Z55: 119500 | AA55: 165400 | AB55: 174300 | AC55: 195900 | AD55: 200000
D56: 52300 | F56: 52300 | G56: 52300 | H56: 61300 | I56: 46700 | J56: 73400 | K56: 24500 | L56: 24800 | M56: 25200 | N56: 26600 | O56: 28700 | P56: 29700 | Q56: 31100 | R56: 36400 | S56: 39800 | T56: 77700 | U56: 83900 | V56: 93100 | W56: 98300 | X56: 104200 | Y56: 110500 | Z56: 123100 | AA56: 170400 | AB56: 179500 | AC56: 201800 | AD56: 206000
D57: 53900 | F57: 53900 | G57: 53900 | H57: 63100 | I57: 48100 | J57: 75600 | K57: 25200 | L57: 25500 | M57: 26000 | N57: 27400 | O57: 29600 | P57: 30600 | Q57: 32000 | R57: 37500 | S57: 41000 | T57: 80000 | U57: 86400 | V57: 95900 | W57: 101200 | X57: 107300 | Y57: 113800 | Z57: 126800 | AA57: 175500 | AB57: 184900 | AC57: 207900 | AD57: 212200
D58: 55500 | F58: 55500 | G58: 55500 | H58: 65000 | I58: 49500 | J58: 77900 | K58: 26000 | L58: 26300 | M58: 26800 | N58: 28200 | O58: 30500 | P58: 31500 | Q58: 33000 | R58: 38600 | S58: 42200 | T58: 82400 | U58: 89000 | V58: 98800 | W58: 104200 | X58: 110500 | Y58: 117200 | Z58: 130600 | AA58: 180800 | AB58: 190400 | AC58: 214100 | AD58: 218600
D59: 57200 | F59: 57200 | G59: 57200 | H59: 67000 | I59: 51000 | J59: 80200 | K59: 26800 | L59: 27100 | M59: 27600 | N59: 29000 | O59: 31400 | P59: 32400 | Q59: 34000 | R59: 39800 | S59: 43500 | T59: 84900 | U59: 91700 | V59: 101800 | W59: 107300 | X59: 113800 | Y59: 120700 | Z59: 134500 | AA59: 186200 | AB59: 196100
D60: 58900 | F60: 58900 | G60: 58900 | H60: 69000 | I60: 52500 | J60: 82600 | K60: 27600 | L60: 27900 | M60: 28400 | N60: 29900 | O60: 32300 | P60: 33400 | Q60: 35000 | R60: 41000 | S60: 44800 | T60: 87400 | U60: 94500 | V60: 104900 | W60: 110500 | X60: 117200 | Y60: 124300 | Z60: 138500 | AA60: 191800 | AB60: 202000
D61: 60700 | F61: 60700 | G61: 60700 | H61: 71100 | I61: 54100 | J61: 85100 | K61: 28400 | L61: 28700 | M61: 29300 | N61: 30800 | O61: 33300 | P61: 34400 | Q61: 36100 | R61: 42200 | S61: 46100 | T61: 90000 | U61: 97300 | V61: 108000 | W61: 113800 | X61: 120700 | Y61: 128000 | Z61: 142700 | AA61: 197600 | AB61: 208100
D62: 62500 | F62: 62500 | G62: 62500 | H62: 73200 | I62: 55700 | J62: 87700 | K62: 29300 | L62: 29600 | M62: 30200 | N62: 31700 | O62: 34300 | P62: 35400 | Q62: 37200 | R62: 43500 | S62: 47500 | T62: 92700 | U62: 100200 | V62: 111200 | W62: 117200 | X62: 124300 | Y62: 131800 | Z62: 147000 | AA62: 203500
D63: 64400 | F63: 64400 | G63: 64400 | H63: 75400 | I63: 57400 | J63: 90300 | K63: 30200 | L63: 30500 | M63: 31100 | N63: 32700 | O63: 35300 | P63: 36500 | Q63: 38300 | R63: 44800 | S63: 48900 | T63: 95500 | U63: 103200 | V63: 114500 | W63: 120700 | X63: 128000 | Y63: 135800 | Z63: 151400
D64: 66300 | F64: 66300 | G64: 66300 | H64: 77700 | I64: 59100 | J64: 93000 | K64: 31100 | L64: 31400 | M64: 32000 | N64: 33700 | O64: 36400 | P64: 37600 | Q64: 39400 | R64: 46100 | S64: 50400 | T64: 98400 | U64: 106300 | V64: 117900 | W64: 124300 | X64: 131800 | Y64: 139900 | Z64: 155900
D65: 68300 | F65: 68300 | G65: 68300 | H65: 80000 | I65: 60900 | J65: 95800 | K65: 32000 | L65: 32300 | M65: 33000 | N65: 34700 | O65: 37500 | P65: 38700 | Q65: 40600 | R65: 47500 | S65: 51900 | T65: 101400 | U65: 109500 | V65: 121400 | W65: 128000 | X65: 135800 | Y65: 144100 | Z65: 160600
D66: 70300 | F66: 70300 | G66: 70300 | H66: 82400 | I66: 62700 | J66: 98700 | K66: 33000 | L66: 33300 | M66: 34000 | N66: 35700 | O66: 38600 | P66: 39900 | Q66: 41800 | R66: 48900 | S66: 53500 | T66: 104400 | U66: 112800 | V66: 125000 | W66: 131800 | X66: 139900 | Y66: 148400 | Z66: 165400
D67: 72400 | F67: 72400 | G67: 72400 | H67: 84900 | I67: 64600 | J67: 101700 | K67: 34000 | L67: 34300 | M67: 35000 | N67: 36800 | O67: 39800 | P67: 41100 | Q67: 43300 | R67: 50400 | S67: 55100 | T67: 107500 | U67: 116200 | V67: 128800 | W67: 135800 | X67: 144100 | Y67: 152900 | Z67: 170400
D68: 74600 | F68: 74600 | G68: 74600 | H68: 87400 | I68: 66500 | J68: 104800 | K68: 35000 | L68: 35300 | M68: 36100 | N68: 37900 | O68: 41000 | P68: 42300 | Q68: 44400 | R68: 51900 | S68: 56800 | T68: 110700 | U68: 119700 | V68: 132700 | W68: 139900 | X68: 148400 | Y68: 157500 | Z68: 175500
D69: 76800 | F69: 76800 | G69: 76800 | H69: 90000 | I69: 68500 | J69: 107900 | K69: 36100 | L69: 36400 | M69: 37200 | N69: 39000 | O69: 42200 | P69: 43600 | Q69: 45700 | R69: 53500 | S69: 58500 | T69: 114000 | U69: 123300 | V69: 136700 | W69: 144100 | X69: 152900 | Y69: 162200 | Z69: 180800
D70: 79100 | F70: 79100 | G70: 79100 | H70: 92700 | I70: 70600 | J70: 111100 | K70: 37200 | L70: 37500 | M70: 38300 | N70: 40200 | O70: 43500 | P70: 44900 | Q70: 47100 | R70: 55100 | S70: 60300 | T70: 117400 | U70: 127000 | V70: 140800 | W70: 148400 | X70: 157500 | Y70: 167100 | Z70: 186200
D71: 81500 | F71: 81500 | G71: 81500 | H71: 95500 | I71: 72700 | J71: 114400 | K71: 38300 | L71: 38600 | M71: 39400 | N71: 41400 | O71: 44800 | P71: 46200 | Q71: 48500 | R71: 56800 | S71: 62100 | T71: 120900 | U71: 130800 | V71: 145000 | W71: 152900 | X71: 162200 | Y71: 172100 | Z71: 191800
D72: 83900 | F72: 83900 | G72: 83900 | H72: 98400 | I72: 74900 | J72: 117800 | K72: 39400 | L72: 39800 | M72: 40600 | N72: 42600 | O72: 46100 | P72: 47600 | Q72: 50000 | R72: 58500 | S72: 64000 | T72: 124500 | U72: 134700 | V72: 149400 | W72: 157500 | X72: 167100 | Y72: 177300 | Z72: 197600
D73: 86400 | F73: 86400 | G73: 86400 | H73: 101400 | I73: 77100 | J73: 121300 | K73: 40600 | L73: 41000 | M73: 41800 | N73: 43900 | O73: 47500 | P73: 49000 | Q73: 51500 | R73: 60300 | S73: 65900 | T73: 128200 | U73: 138700 | V73: 153900 | W73: 162200 | X73: 172100 | Y73: 182600 | Z73: 203500
D74: 89000 | F74: 89000 | G74: 89000 | H74: 104400 | I74: 79400 | J74: 124900 | K74: 41800 | L74: 42200 | M74: 43100 | N74: 45200 | O74: 48900 | P74: 50500 | Q74: 53000 | R74: 62100 | S74: 67900 | T74: 132000 | U74: 142900 | V74: 158500 | W74: 167100 | X74: 177300 | Y74: 188100
D75: 91700 | F75: 91700 | G75: 91700 | H75: 107500 | I75: 81800 | J75: 128600 | K75: 43100 | L75: 43500 | M75: 44400 | N75: 46600 | O75: 50400 | P75: 52000 | Q75: 54600 | R75: 64000 | S75: 69900 | T75: 136000 | U75: 147200 | V75: 163300 | W75: 172100 | X75: 182600 | Y75: 193700
D76: 94500 | F76: 94500 | G76: 94500 | H76: 110700 | I76: 84300 | J76: 132500 | K76: 44400 | L76: 44800 | M76: 45700 | N76: 48000 | O76: 51900 | P76: 53600 | Q76: 56200 | R76: 65900 | S76: 72000 | T76: 140100 | U76: 151600 | V76: 168200 | W76: 177300 | X76: 188100 | Y76: 199500
D77: 97300 | F77: 97300 | G77: 97300 | H77: 114000 | I77: 86800 | J77: 136500 | K77: 45700 | L77: 46100 | M77: 47100 | N77: 49400 | O77: 53500 | P77: 55200 | Q77: 57900 | R77: 67900 | S77: 74200 | T77: 144300 | U77: 156100 | V77: 173200 | W77: 182600 | X77: 193700
D78: 100200 | F78: 100200 | G78: 100200 | H78: 117400 | I78: 89400 | J78: 140600 | K78: 47100 | L78: 47500 | M78: 48500 | N78: 50900 | O78: 55100 | P78: 56900 | Q78: 59600 | R78: 69900 | S78: 76400 | T78: 148600 | U78: 160800 | V78: 178400 | W78: 188100 | X78: 199500
D79: 103200 | F79: 103200 | G79: 103200 | H79: 120900 | I79: 92100 | J79: 144800 | K79: 48500 | L79: 48900 | M79: 50000 | N79: 52400 | O79: 56800 | P79: 58600 | Q79: 61400 | R79: 72000 | S79: 78700 | T79: 153100 | U79: 165600 | V79: 183800 | W79: 193700
D80: 106300 | F80: 106300 | G80: 106300 | H80: 124500 | I80: 94900 | J80: 149100 | K80: 50000 | L80: 50400 | M80: 51500 | N80: 54000 | O80: 58500 | P80: 60400 | Q80: 63200 | R80: 74200 | S80: 81100 | T80: 157700 | U80: 170600 | V80: 189300 | W80: 199500
D81: 109500 | F81: 109500 | G81: 109500 | H81: 128200 | I81: 97700 | J81: 153600 | K81: 51500 | L81: 51900 | M81: 53000 | N81: 55600 | O81: 60300 | P81: 62200 | Q81: 65100 | R81: 76400 | S81: 83500 | T81: 162400 | U81: 175700 | V81: 195000
D82: 112800 | F82: =IF($F$42=4200,G82,IF($F$42=4800,H82,IF($F$42="5400A",J82,IF($F$42=3600,I82,IF($F$42=1700,K82,IF($F$42=1750,L82,IF($F$42=1900,M82,IF($F$42=2000,N82,IF($F$42="2400A",O82,IF($F$42="2400B",P82,IF($F$42="2400C",Q82,IF($F$42="2800A",R82,IF($F$42="2800B",S82,IF($F$42="5400B",T82,IF($F$42=6000,U82,IF($F$42=6600,V82,IF($F$42=6800,W82,IF($F$42=7200,X82,IF($F$42=7600,Y82,IF($F$42=8200,Z82,IF($F$42=8700,AA82,IF($F$42=8900,IF($F$42=9500,AC82,IF($F$42=10000,AD82,"")))))))))))))))))))))))) -> 112800 | G82: 112800 | H82: 132000 | I82: 100600 | J82: 158200 | K82: 53000 | L82: 53500 | M82: 54600 | N82: 57300 | O82: 62100 | P82: 64100 | Q82: 67100 | R82: 78700 | S82: 86000 | T82: 167300 | U82: 181000
D83: 116200 | F83: 116200 | G83: 116200 | H83: 136000 | I83: 103600 | J83: 162900 | K83: 54600 | L83: 55100 | M83: 56200 | N83: 59000 | O83: 64000 | P83: 66000 | Q83: 69100 | R83: 81100 | S83: 88600 | T83: 172300 | U83: 186400
H85: 2 | I85: 3 | J85: 4 | K85: 5 | L85: 9 | M85: 9A | N85: 9B | O85: 10 | P85: 10A | Q85: 11 | R85: 12 | S85: 14 | T85: 15 | U85: 15 | V85: 16 | W85: 17 | X85: 18 | Y85: 19 | Z85: 20 | AA85: 21 | AB85: 22 | AC85: 23 | AD85: 23A | AE85: 24
H86: L-1 | I86: L-2 | J86: L-3 | K86: L-4 | L86: L-5 | M86: L-6 | N86: L-7 | O86: L-8 | P86: L-9 | Q86: L-10 | R86: L-11 | S86: L-12 | T86: L-13 | U86: L-14 | V86: L-15 | W86: L-16 | X86: L-17 | Y86: L-18 | Z86: L-19 | AA86: L-20 | AB86: L-21 | AC86: L-22 | AD86: L-23 | AE86: L-24

Sheet Developer's desk
A1: FROM THE DEVELOPER'S DESK
A2: If you have Hindi font problem, then first you should install Hindi font KRUTI DEV 010 in your computer.
A3: vk;dj x.kuk ds fy, ;g odZcqd dsoy jktLFkku jkT; ds deZpkfj;ksa ds fy, rS;kj dh x;h gSA
A4: bl odZcqd esa fuEu lqfo/kk,a miYkC/k gSa&
B5: ¼v½ th,&55 ,oa vk;dj x.kuk 'khV dk vkWVkstusjs'ku
B6: ¼c½ QkWeZ 16 dk vkWVkstusjs'ku
B7: ¼l½ /kkjk 89(1) ds vUrxZr iwoZ o"kksZa ds ,fj;j ij iznÙk NwV dh x.kuk ,oa QkWeZ 10E dk vkWVkstusjs'ku
B8: ¼n½ edku fdjk;k NwV dh x.kuk ,oa edku fdjk;k jlhn dk vkWVkstujs'ku
A9: xr o"kZ dbZ USERS }kjk eglwl dh x;h dfe;ksa ,oa fn, x, lq>koksa dk vf/kdre lekos'k djds iqu% vki yksxksa dh lqfo/kk ds fy, bls izLrqr fd;k tk jgk gSA
A10: How to use this Software
B11: loZizFke www.vijayranwa.jimdo.com ls u;k ,oa viMsVsM 'khV MkmuyksM djsasaA mlds ckn vkidks ftrusa dkfeZdksa dh vk;dj x.kuk djuh gS] Save As ds }kjk mruh gh ,Dly izksxzke 'khV dks muds uke ls vyx vyx Qkby esa Save dj ysosaA
A12: Entry | B12: vki bl ,Dly izksxzke esa Entry 'khV esa lko/kkuhiwoZd vuykWd lsy tks lQsn dyj esa gSa] dsoy mUgha dks Hkjuk gSaA vkxs dh 'khVs vkWVksa tujsV gSaA os lHkh ykWd gSaA ogk ij vkidks dqN ugh djuk gSaA flQZ A4 lkbZt esa fizUV fudkyuk gSaA
A13: HRA | B13: 10% HRA ds fy, Metro ,oa 20% HRA ds fy, Non-metro dks Entry Sheet ij C12 esa lysDV djsaA ;fn vki edku fdjk, HkÙks ij VSDl dh NwV pkgrs gSa rks ENTRY SHEET esa lsy C21 esa ekfld Hkqxrku fd, x;s fdjk, dh jkf'k fy[ksaA lsy D21 vf/kdre NwV ds fy, ftruk ekfld fdjk;k Hkjuk gS oks jkf'k fn[kkrk gSA
A14: GA 55 | B14: blds vykok vxj vki GA-55 esa dksbZ cnyko djuk pkgrs gks rks GA-55 'khV esa dj ldrs gksaA vki eSU;qyh MkVk fQM Hkh dj ldrsa gSa vkSj gVk Hkh ldrsa gSaA
A15: 7th Pay Commission | B15: ;g izksxzke NBsa vkSj lkrosa nksuksa osrueku dks /;ku esa j[k dj cuk;k x;k gSaA bl izksxzke esa vkidks lkrosa osrueku dk osru ftl ekg lss cukuk gS ml ekg dk p;u Entry 'khV ij djsaA
A16: FROM No. - 16 | B16: bl 'khV esa GA 55 rFkk Computation Sheet dk Data Lor% vk;sxkA bl 'khV esa vkidks Edit dh vuqefr ugha gSA tks Hkh ifjorZu djuk gS GA55 rFkk Entry Sheet 'khV esa gh djsA NPS Employee ds fy, ldy vk; esa Govt. Contribution Pension Fund dh jkf'k tksM+ nh x;h gSA
A17: Print | B17: GA55A & Computation Sheet isij lkbt A4 ij Page Setup fd;k gqvk gSA lh/ks nksuksa 'khV dk vkxsa ihNs fizaV ysaA 16 ua- QkeZ dks rhu ist esa lsV fd;k gqvk gSaA vki mldk rhu ist esa fizUV ys ldrsa gSaA
A18: ;g ,Dly izksaxzke lHkh dkfeZdksa ds fy, leku :i ls rS;kj fd;k x;k gSA ladyu ,oa x.kuk esa iw.kZ lko/kkuh j[kh xbZ gSA fQj Hkh =qfV ;k fdlh Hkh izdkj dh fofHkUurk dh fLFkfr esa vk;dj foHkkx ds fu;e gh ekU; gSA rS;kjdrkZ dk dksbZ mÙkjnkf;Ro ugha gksxkA
A19: dksbZ leL;k ;k lq>ko gks rks vkidk gkfnZd Lokxr gSA bl ,Dly 'khV esa tc Hkh dksbZ vko';d la'kks/ku gksrk gSa] rks bldk viMsV izksxzke ges'kk uhps fy[kh osclkbZV ls u;k MkmuyksM djds bLrseky djsaA vki eq>s uhps fy[ks bZ&esy ,oa okV~lvi ij lEidZ dj ldrs gSaA
A20: E Mail ID - | C20: vijaysalasar2011@gmail.com | H20: 9828113904 | J20: www.vijayranwa.jimdo.com

Sheet Information & Rules
B1: Auto Income Tax Calculator By - Vijay Ranwa, Teacher
A2: For the Financial year 2017- 18, ASSESSMENT YEAR 2018-19 .
A3: Brief detail of Information and RULES for(Rates,Deductions,Exemption etc.)
B4: Follow theTax Rules & Informations (where applicable).
A5: 1 | B5: New Tax Rates for Financial-Year 2017-18, Assessment Year 2018-2019
A6: 2 | B6: Some Exempted Receipts / Special allowances & Perquisite which are not chargable to tax
A7: 3 | B7: Some Exempted Income ( to be shown while Return filing)
A8: 4 | B8: T A X R U L E S & O T H E R U S E F U L I N F O R M A T I O N S
A9: I | B9: HRA exemption-u/s 10(13A)
A10: II | B10: Transport allowance
A11: III | B11: Reimbursement of Medical bills
A12: IV | B12: u/s(5) LTA Exemption
A13: V | B13: u/s 24 and 80EE Exemption for interest on housing loan.
A14: VI | B14: u/s 80CCE & 80CCD Maximum Exemption
A15: VII | B15: Rajiv Gandhi Equity Savings Scheme
A16: VIII | B16: u/s 80D Medical Insurance
A17: IX | B17: u/s 80DD Deduction in respect of medical treatment of handicapped dependents
A18: X | B18: u/s 80DDB Deduction in respect of medical treatment for specified ailments or diseases
A19: XI | B19: u/s 80E Interest repayment on education loan
A20: XII | B20: u/s 80G Donations given for certain charities
A21: XIII | B21: u/s 80GG If Assesse is not getting HRA, but living in rented house,
A22: XIV | B22: u/s 80U If assesse have a permanent physical disability
A23: XV | B23: u/s 80TTA Deduction on interest on saving bank accounts.
A24: 5 | B24: KNOW MORE about DEDUCTION under Section 80-C
A25: a | B25: Qualifying Investments u/s 80CCE
A26: b | B26: Provident Fund (PF) & Voluntary Provident Fund (VPF)
A27: c | B27: Life Insurance Premiums & Unit linked Insurance Plan (ULIP)
A28: d | B28: Public Provident Fund (PPF):
A29: e | B29: National Savings Certificate (NSC):
A30: f | B30: Home Loan Principal Repayment & Stamp Duty and Registration Charges for a home
A31: g | B31: Tuition fees for 2 children
A32: h | B32: Equity Linked Savings Scheme (ELSS)
A33: i | B33: 5-Yr bank fixed deposits (FDs) or 5-Yr post office time deposit (POTD)
A34: j | B34: Pension Funds or Pension Policies
A35: k | B35: Sukanya Samridhi Account
A36: l | B36: Infrastructure Bonds: NABARD rural bonds:
A37: m | B37: Senior Citizen Savings Scheme 2004 (SCSS)
A38: 6 | B38: I M P O R T A N T - A D V I S ES
B39: As per finance Finance Act 2017 - TAX RATES For Financial Year 2017-18 & Assesment Year 2018-19
B40: For MALE ASSESSE
B41: Net Income Range Income Tax Rates
B42: Up to ₹ 2,50,000 NIL
B43: 2,50,001 to ₹ 5,00,000 5% on Total Income (-) ₹ 2,50,000
B44: ₹ 5,00,001 to ₹ 10,00,000 ₹12,500+20% of Total Income (-) ₹5,00,000
B45: More than ₹ 10.00,000 ₹1,12,500+30% of Total Income (-) ₹10,00,000
B46: Note- (u/s 87A- A rebate upto ₹ 2500/- for assessee with Income range upto ₹ 3,50,000 )
B47: For FEMALE ASSESSE ( same tax slab as Male Assesse)
B48: Net Income Range Income Tax Rates
B49: Up to ₹2,50,000 NIL
B50: ₹250,001 to ₹5,00,000 5% of Total Income (-) ₹2,50,000
B51: ₹5,00,001 to ₹10,00,000 ₹12,500 + 20% of Total Income (-) ₹5,00,000
B52: More than ₹10.00,000 ₹1,12,500 + 30% of Total Income (-) ₹10,00,000
B53: Note- (u/s 87A- A rebate upto ₹2500/- for assessee with Income range upto ₹ 3,50,000)
B54: For SENIOR CITIZEN ASSESSE (Above 60 Year ) attaining the age during the year
B55: Net Income Range Income Tax Rates
B56: Up to ₹3,00,000 NIL
B57: ₹3,00,001 to 5,00,000 5% of Total Income(-) ₹3,00,000
B58: ₹5,00,001 to 10,00,000 ₹10,000 +20% of Total Income (-) ₹5,00,000
B59: More than ₹10.00,000 ₹1,10,000 + 30% of Total Income (-) ₹10,00,000
B60: Note- (u/s 87A- A rebate upto ₹ 2500/- for assessee with Income range upto ₹ 3,50,000)
B61: For VERY SENIOR CITIZEN ASSESSE (Above 80 Year ) attaining the age during the year
B62: Net Income Range Income Tax Rates
B63: Up to ₹5,00,000 NIL
B64: ₹5,00,001 to ₹10,00,000 20% of Total Income (-) ₹10,00,000
B65: More than ₹10,00,000 ₹1,00,000 +30% of Total Income (-) ₹10,00,000
B66: Note: 1. Education Cess is 2% & Secondary and Higher education Cess is 1% of income tax from all Assesse. . 2. Surcharge on income tax @10% for income above 50 Lakh & 15% for income above 1crore
B67: Some Exempted Receipts /Special allowances & Perquisite which are not chargable to tax are
B68: Exempted Receipts - 1. Medical Reimbursement (Max Rs15000/- Per annum) 2. L.T.A (as per Rule)
B69: Special allowances Exempted u/s 10(14) 1. Uniform Allowance (granted to meet the expenditure incurred on purchase or maintenance of uniform to be worn during performance of Official Duty) 2. Helper Allowance ( granted to meet exependiture incurred on helper for performance of official duty) 3. Academic Allowance (granted for encouraging academic, research & training pursuits) including Newspaper, Generals etc.) 4. Children Education Allowance ( ₹100 P.M. per child / (₹300 for hostel expenditure) Max of 2 children) 5. Convayance allowance ( granted to meet the expenditure incurred on convayance, while performing official duty. . ( Expenditure incured for covering journey between office and residence is not treated as expenditure in performance of official duty. )
B70: Deduction available u/s -16 1. Entertainment allowance (for Govt Employees) Max ₹5000/- 2. Professional tax - Professional tax paid by employee is deducted from Gross salary.
B71: Perquisite not chargable to tax
B72: Free food and beverage 1. Food and non-alcoholic beverages provided in working hours in remote area or an offshore instalation are exempted to tax 2. Tea, coffee or non-alcoholic beverages and snaks in working hours are tax free perquisites. 3. Meals (Lunch and / or dinner) in office hours is not taxable. If cost to the employeris ₹50 (or Less) per meal.
B73: Some Exempted Income are ( to be shown while Return filing)
B74: 1. Withdrawal / Maturity / Interest received from PF,PPF,Sukanya Samridhi Account, Life Insurance policy, Agriculture. (Max up to ₹5000/- )
B75: 2 Long Term Capital Gain From Shares
B76: 3 Dividend on shares in companies
B77: 4. Interest on Saving Bank & Post Office A/c up to ₹ 10,000/- ( Sec-80TTE)
B78: Please Note :
B79: (i) Interest earned from all sources are to be included. All interest (including saving Bank A/C (above ₹10,000), FD income are fully taxable).
B80: (II) As per clarification from IT department, all perquisites such as rent-free accommodation, company provided car, free or concessional education facilities, employee stock option plan, free club membership, company provided credit card, gift vouchers, meal coupons, hotel stay beyond 15 days, are fully taxable.
B81: T A X R U L E S & O T H E R U S E F U L I N F O R M A T I O N S for
A82: I | B82: House Rent Allowance exemption-10(13A) = Least amount of anyone (i) 40% of Salary (50%, if house situated in Mumbai, Calcutta, Delhi or Madras) or (ii) Actual HRA Recived . or (iii) Rent paid minus 10% of salary * Salary= Basic + DA (if part of retirement benefit) + Turnover based Commission Note i. Fully Taxable, if HRA is received by an employee who is living in his own house or if he does not pay any rent ii. It is mandatory for employee to report PAN of the landlord to the employer if rent paid is more than ₹ 1,00,000 [Circular No. 08 /2013 dated 10th October, 2013]. (In case the landlord does not have PAN, employee should submit a declaration stating the same along with the landlord’s details.)
A83: II | B83: Transport allowance is exempt up to ₹1600/- per month during the month (₹ 3,200 per month for blind and handicapped employees) . Transport Allowance is granted to an employee to meet expenditure on commuting between place of residence and place of duty
A84: III | B84: Reimbursement of Medical bills(on producing of Bills) are exempt for self and dependent family, up to ₹15,000/- per annum
A85: IV | B85: u/s(5) LTA is exempt to the tune of economy class Train/ Air /Recognised public Transport fare for the family to any destination in India, by the shortest route. LTA can be claimed twice in a block of 4 calendar yea₹ The current block is from 01.01.2014 to 31.12.2017. For claim, it is must to provide originals tickets etc.
A86: V(a) New Change | B86: u/s 24 and 80 EE There is an Exemption for interest on housing loan.(for Self occupied Residence). If the loan was taken before Apr 1, 1999 exemption is limited to ₹30,000/- per year. If the loan was taken after Apr 1, 1999 exemption is limited to ₹2,00,000/- per year if the house is self-occupied; There is no limit if the house is rented out This exemption is available on accrual basis, which means if interest has accrued, you can claim exemption, irrespective of whether you've paid it or not.. 80EE In finance bill 2016 (an additional rebate of ₹.50.000/- was given to those assesse, who purchase self ocupied single house after 01/04/2016 with maximum value of ₹ 60 Lacs and sanctioned home loan up to 35 Lacs.)
A87: (b) | B87: If you have rented out your house, Whole the interest will be eligible for deduction. (after deducting property tax and standard maintenance expenses from rent recived).
A88: VI | B88: u/s 80CCE- Maximum Exemption up to ₹1,50,000/- Investments up to ₹1.5 lac in PF, VPF, PPF, Employee contribution in NPS,Insurance Premium, Housing loan principal repayment, NSC, ELSS, long term bank Fixed Deposit, Post Office Term Deposit, etc. are deductible from the taxable income. There is no limit on individual items, (for example) all 1.5 lac can be invested in NSC or PPF etc.
A89: VII | B89: u/s 80CCD(1): The Finance Act, 2015 provides that contribution made by the Central Government or any other employer to NPS shall be excluded while computing the limit of Rs1,50,000.The contribution by the employee to the NPS will be subject to the limit of ₹1,50,000. Section 80CCD: Additional Contribution to New Pension Scheme (NPS) - It will provide an additional deduction of upto ₹ 50,000 over and above the limit of ₹ 1.50 lakh in respect of contributions made to NPS under Section 80CCD(1). Section 80CCD (2): Contribution to Pension Account (by Employer) - Deduction available for the amount paid or deposited by the employer of the assessee in a pension scheme notified or as may be notified by the Central Government subject to a maximum of 10% of salary in the financial year
A90: VIII | B90: u/s 80CCG - Rajiv Gandhi Equity Savings Scheme exemption available for investment in stock markets (direct equity). Avaialble only for those with gross income less than 12 lacs and only for first time investors in stock market. Exemption available at 50% of investment subject to maximum of ₹50,000/- invested. Investments are locked-in for three years
A91: IX | B91: u/s 80D Medical Insurance Premium (such as Mediclaim & Critical illness Cover with contribution in CGHS & Preventive Health Check up Upto INR.5000/-) Premium is exempt up to INR.55,000/ per year (₹25,000/- for self,spouse and children ) (₹25,000/- or ₹30,000/- for Parents) If Parents are Senior Citizen (above 60 years of age), Exempted premium up to ₹30,000/0 oterwise upto ₹.25,000/-. For Very Senior Citizen (Age 80+) - (In case of no Mediclaim) Any payment made on account of Medical expenditure in respect of very senior citizens will be allowed as deduction u/s 80D of a maximum of ₹30,000/-
A92: X | B92: u/s 80DD Deduction in respect of medical treatment of handicapped dependents is limited to ₹75,000/- per year if the disability is less than 80% and Rs1,25,000/- per year if the disability is more than 80%
A93: XI | B93: u/s 80DDB Deduction in respect of medical treatment for specified ailments or diseases for the assesse or dependent can be claimed up to ₹40,000/- per year. If the person being treated is a senior citizen (Age 60-80Yrs), the exemption can go up to ₹60,000/-. If the person is very senior citizen (Age 80+), the exemption can go up to ₹ 80,000/- but any amount received under Medical Insurance Policy will be reduced from the amount of deduction allowed. The Diseases and ailments specified under rule 11DD are. (1) Neurological diseases being demetia, dystonia musculorum deformans, motor neuron disease, ataxia, chorea, hemiballismus, aphasia and parkisons disease, (2) cancer, (3) AIDS, (4)Chronic renal failure, (5) hemophilia, and (6) thalassaemia. Note:The assessee will be required to obtain a prescription/Certificate from a specialist doctor whether from Govt or Pvt. for the purpose of availing this deduction.
A94: XII | B94: u/s 80E Interest repayment on education loan (taken for higher education from a university of self & dependents) is completely tax exempt
A95: XIII | B95: u/s 80G Donations given for certain charities are tax exempt.NGO,Trust etc. are exempt to the tune of 50%, whereas Govt funds are 100%.
A96: XIV New | B96: u/s 80GG If you are not getting HRA, but living in rented house, an exemption is available. This will be calculated as minimum of (25% of total income or rent paid - 10% of total income or ₹ 60,000/- per year)
A97: XV | B97: u/s 80U who suffers from not less than 40 per cent of any disability is eligible for deduction to the extent of ₹ 75,000/- and in case of severe disability to the extent of ₹ 1,25,000/-
A98: XVI | B98: u/s 80TTA introduced through Finance Act, 2012. Section 80TTA provides a deduction of up to ₹10,000 on your income from interest on saving bank accounts.
B99: KNOW MORE about DEDUCTION under Section 80-C and chapter VIA
B100: Section 80C of the Income Tax Act allows certain investments and expenditure to be deduct from total income - One must plan investments well and spread it out across the various instruments specified under this section to avail maximum tax benefit. There are no sub-limits and is irrespective of how much you earn and under which tax bracket you fall. Most of the Income Tax payee try to save tax by saving under Section 80C of the Income Tax Act. However, it is important to know the Section in total. so that one can make best use of the options available for deduction under income tax Act. One important point to note that one can not only save tax by undertaking the specified investments, but some expenditure which you normally incur can also give you the tax exemptions.
B101: Qualifying Investments u/s 80CCE are
A102: a | B102: Provident Fund (PF) & Voluntary Provident Fund (VPF) PF is automatically deducted from your salary. your contribution [12% of Basic] (i.e., employee’s contribution) is counted towards section 80C investments. You also have the option to contribute additional amounts through voluntary contributions (VPF). Current rate of interest is 8.5% per annum (p.a.) and is tax-free.
A103: b | B103: Life Insurance Premiums: Any amount that you pay towards life insurance premium in Life Insurance Corporation (LIC) or any other Insurance CO.for yourself, your spouse or your children can also be included in Section 80C deduction. If you are paying premium for more than one insurance policy, all the premiums will be included. also premium paid for ULIP will also be treated as Premium paid for Life Insurance Policies. Unit linked Insurance Plan : ULIP stands for Unit linked Saving Schemes. ULIPs cover Life insurance with benefits of equity investments.They have attracted the attention of investors and tax-savers not only because they help us save tax but they also perform well to give decent returns in the long-term. IMP : Total Amount Received at Maturity, Survival Benefits, , Withdrawl in Insurance Policies is Tax Free and fully exempteed u/s 10(10D).
A104: c | B104: Public Provident Fund (PPF): Among all the assured returns small saving schemes, Public Provident Fund (PPF) is one of the best. Current rate of interest is 8% tax-free and the normal maturity period is 15 years Minimum amount of contribution is ₹500 and maximum is ₹1,50,000.(New Change) from Finance Act 2014
A105: d | B105: National Savings Certificate (NSC): National Savings Certificate (NSC) is a 5-Yr small savings instrument eligible for section 80C tax benefit. Rate of interest is 8.58% compounded half-yearly, i.e. If you invest ₹100, it becomes ₹150.90 after five years. The interest accrued every year is liable to tax (i.e. to be included in your taxable income) but the interest is also deemed to be reinvested and thus eligible for section 80C deduction.
A106: e | B106: Home Loan Principal Repayment & Stamp Duty and Registration Charges for a home Loan The Equated Monthly Installment (EMI) that you pay every month to repay your home loan consists of two components – Principal and Interest.The principal component of the EMI qualifies for deduction under Sec 80C. Even the interest component can save you significant income tax – but that would be under Section 24 of the Income Tax Act. The amount you pay as stamp duty when you buy a house, and the amount you pay for the registration of the documents of the house can be claimed as deduction under section 80C in the year of purchase of the house.
A107: f | B107: Tuition fees for 2 children Apart form the above major investments expenses for children’s education (Only Tution Fee (for which you need receipts)), can be claimed as deductions under Sec 80C.
A108: g | B108: Equity Linked Savings Scheme (ELSS): There are some mutual fund (MF) schemes specially created for offering you tax savings, and these are called Equity Linked Savings Scheme, or ELSS. The investments that you make in ELSS are eligible for deduction under Sec 80C.
A109: h | B109: 5-Yr bank fixed deposits (FDs): Tax-saving fixed deposits (FDs) of scheduled banks with tenure of 5 years are also entitled for section 80C deduction. 5-Yr post office time deposit (POTD) scheme: POTDs are similar to bank fixed deposits. Although available for varying time duration like one year, two year, three year and five year, only 5-Yr post-office time deposit (POTD) – which currently offers 7.5 per cent rate of interest –qualifies for tax saving under section 80C. Effective rate works out to be 7.71% per annum (p.a.) as the rate of interest is compounded quarterly but paid annually. The Interest is entirely taxable.
A110: i | B110: Pension Funds or Pension Policies – Section 80CCC: This section – Sec 80CCC – stipulates that an investment in pension funds is eligible for deduction from your income. Section 80CCC investment limit is clubbed with the limit of Section 80C – it means that the total deduction available for 80CCC and 80C is ₹1.5 Lakh.This also means that your investment in pension funds upto ₹1.5 Lakh can be claimed as deduction u/s 80CCC. However, as mentioned earlier, the total deduction u/s 80C and 80CCC can not exceed ₹1.5 Lakh.
A111: j | B111: Infrastructure Bonds: These are also popularly called Infra Bonds. These are issued by infrastructure companies, and not the government. The amount that you invest in these bonds can also be included in Sec 80C deductions. NABARD rural bonds: There are two types of Bonds issued by NABARD (National Bank for Agriculture and Rural Development): NABARD Rural Bonds and Bhavishya Nirman Bonds (BNB). Out of these two, only NABARD Rural Bonds qualify under section 80C.
A112: k | B112: Senior Citizen Savings Scheme 2004 (SCSS): A recent addition to section 80C list, Senior Citizen Savings Scheme (SCSS) is the most lucrative scheme among all the small savings schemes but is meant only for senior citizens. Current rate of interest is 9% per annum payable quarterly. Please note that the interest is payable quarterly instead of compounded quarterly. Thus, unclaimed interest on these deposits won’t earn any further interest. Interest income is chargeable to tax.
A113: l | B113: Sukanya Samridhi Account : Contribution made in a financial year in Sukanya Samriddhi Account will also be eligible for income tax exemption under Section 80C up to a maximum of ₹ 1,50,000/-
B114: I M P O R T A N T - A D V I S ES
B115: Mostly people gives estimated declaration at year starting to minimise their Tax Liabilities but could not save up to last and face heavy burden in last months. Many of us start looking for investment avenues only in February or March, just before the Financial Year is getting over. This is a big mistake! One, you would end up investing your money without putting proper thought to it. And secondly, you would end up losing the interest / appreciation for the whole year. Instead, decide where you want to make the investments, and start investing right from the beginning of the financial year – from April. so it is advisable to save from start on monthly basis through Bank ECS as a SIP . This way, you would not only make informed decisions, but would also earn the interest for the full year from April to March.
B116: C A L L : VIJAY RANWA P h : 98 28 11 39 04 , 9024228324 or M a i l ----- vranwa81@gmail.com
B117: TOP

Sheet ENTRY
B2: INCOME TAX CALCULATION FOR FINANCIAL YEAR 2017-2018 & Assessment year 2018-19 | F2: =TODAY() -> 2017-12-28 | K2: WHATSAPP NO. - 9828113904
B3: DEVELOPED BY VIJAY RANWA - TEACHER, GOVT. SECONDARY SCHOOL | F3: WWW.GSSAMARPURA.JIMDO.COM | K3: www.vijayranwa.jimdo.com
B4: DHANERU, SRIDUNGARGARH (BIKANER) Mo.- 9828113904 | J4: leL;k vkus ij व्हाट्सएप्प ij lEidZ djsaA
B5: As per the Finance Bill, 2017 | C5: Mail ID :- vijaysalasar2011@gmail.com
B6: Enter the Data in Other cells will calculate data & Tax automatically. | F6: LAST UPDATED | I6: 2017-12-25
B7: Employee's Details | F7: Employer / DDO Details
B8: Name Of Employee | C8: VIJAY | F8: 16 No. Form rS;kj djus ds fy, fuEu dkWyeks dh iwfrZ djsaA
B9: Designation | C9: TEACHER | F9: DDO Code | J9: 26339
B10: PAN No. - | C10: efnps7790b | F10: Designation | J10: HEADMASTER
B11: Name of the Office | C11: GOVT SECONDARY SCHOOLDHANERU (BIKANER) | F11: Office Name | J11: GOVT HIGHER SECONDARY SCHOOL AMARPURA
B12: Location of Residence | C12: Non-Metro | F12: Office Place | J12: AMARPURA
B13: If you live Metro select this list city | C13: Bikaner | F13: TAN No. | J13: 2015V
B14: ="Mr."&'G.A. 55'!D4&" Your Basic Pay in March 2017" -> Mr.VIJAY Your Basic Pay in March 2017 | C14: 21290 | D14: edku fdjk;k NwV ds fy, jlhn dh vko';drk | F14: Name | J14: ALTAF AHAMAD KHAN
B15: INPUT GRADE PAY | C15: 4200 | F15: Father's Name
B16: जिस माह मे सातवें वेतन आयोग का फिटमेंट हुआ उसका चयन करे l | C16: 11
B17: जीपीएफ़ (GPF), एनपीएस (NPS) मे से कार्मिक अपना वर्ग चुनें l | C17: NPS | F17: PAN No. | J17: BPGLP1184D
B18: राज्य बीमा की कटौती स्लेब से अलग है तो लिखे अन्यथा खाली छोड़ दें (SI) | C18: 2650 | F18: Place | J18: BIKANER
B19: bUkde VSDl dh ekfld dVkSrh ¼tks osru ls gks jgh gS½ | C19: 1000 | D19: =IF('G.A. 55'!E26=0,0,HRA!J14) -> 103827 | F19: ;fn bl वित्तीय o"kZ esa vkidks ,sfj;j feyk gS rks /kkjk 89 ds rgr vki ml jkf'k ij NwV ds gdnkj gks mlds fy, vki US89 'khV ij tkdj form 10E dks Hkjus ds fy, ,fj;j dh jkf'k dks fiNys fofr; o"kksZa esa lek;kstu djus ds fy, vko';d dkWyeksa dh iwfrZ djsaA
B20: lefiZr vodk'k dk osru fy;k gS rks vkgj.k fd;s x;s ekg dk p;u djsa | C20: 0 | D20: =HRA!J10 -> 0
B21: HRA NwV ds fy, ekfld fdjk;k Hkqxrku dh jkf'k | D21: =CONCATENATE(ROUND(D19/12, 0),"/- Monthly") -> 8652/- Monthly
B22: edku ekfyd dk uke
B23: euksjatu Hkrk /kkjk 16 ¼ii½ ds vUrxZr ¼ vf/kdre lhek : 5000 ½ | F23: vkidks ftrus dkfeZdksa dh vk;dj x.kuk djuh gS] loZizFke mruh ckj odZcqd dks muds uke ls Save As dj ysosaA
B24: vU; HkŸksa tks /kkjk 10(14) ds vUrxZr dj eqDr gSA
B25: O;o;k; dj /kkjk 16 ¼iii½ ds vUrxZr | D25: HRA | F25: is eSustj ls th-,- 55 fudkydj vFkok is iksfLVax ls Gross Salary, Total Deduction, Net Payment dk feyku dj ysosaA
B26: OTHER INCOME | D26: ='G.A. 55'!E26 -> 37975
B27: x`g lEifr ls izkIr fdjk;k & vk; | D27: =C21*12 -> 0
B28: x`gdj | D28: CPF | F28: vkidks dsoy ENTRY Sheet esa MkVk Hkjuk gSA vU; SHEET Automatic complete gks tk;sxh vr% ogka fdlh çdkj dk ifjorZu ugha gksxkA vki G.A.55 'khV esa bPNkuqlkj ifjorZu dj ldrs gksA
B29: jk"Vªh; cpr i= ij vnr C;kt | D29: ='G.A. 55'!I26 -> 66022
B30: cSad o iksLV vkWfQl esa cpr [kkrs ij izkIr C;kt | D30: =IF(C30<10001, C30, 10000) -> 0
B31: FDR ,oa RD ls izkIr C;kt
B32: Bonds ls C;kt | D32: Tax Deposited | F32: HRA o vU; vk;dj lEcfU/kr fu;eksa ds fy, vki Website ls Income Tax Software ds lkFk Rule File Hkh Download dj voyksdu dj ldrs gksA
B33: vU; vk; | D33: ='G.A. 55'!R26 -> 12000
B34: INVESTMENTS
B35: x`g _.k fdLr ewy | F35: NPS esa Government contribution की राशि पहले आप की कुल आय में जुड़ेगी फिर यह राशि US80CCD(2) के तहत छूट योग्य होगीA और यह छूट US 80CCE के तहत मिलने वाली 1.5 लाख की छूट के अलावा होगीA
B36: x`g _.k fdLr C;kt | D36: Taxable Amt
B37: US 80 EE | D37: =COMPUTATION!M40 -> 606920
B38: thou chek dh ekfld izhfe;e ¼tks osru ls dkVk x;k½
B39: thou chek dh okf"kZd izhfe;e ¼tks vkids }kjk tek djok;k x;k½ | D39: GPF | F39: ;fn vki edku fdjk, HkÙks ij VSDl dh NwV pkgrs gSa rks lsy C20 esa vkidks ekfld Hkqxrku fd, x;s fdjk, dh jkf'k fy[kuh gSA lsy D20 vkidks feyus okyh vf/kdre NwV ds fy, ekfld fdjk;k Hkjus dh jkf'k crk,xhA lsy D19 vkidks ml jkf'k ij feyus okyh NwV dh jkf'k crk,xhA lsy D25 esa ml jkf'k dk izn'kZu gksrk gS ftl ij vki vf/kdre NwV ys ldrs gksA ;g vf/kdre NwV vkidks feyus okys edku fdjk, HkÙks dh okf"kZd jkf'k ds cjkcj gksxhA
B40: ih-,y-vkbZ- (PLI) | D40: =COMPUTATION!G22 -> 
B41: V~;w'ku Qhl ¼nks cPpksa ds fy,½
B42: E;wpy Q.M (MUTUAL FUND)
B43: ;w- ,y- vkbZ- ih-@okf"kZd Iyku (ULIP)
B44: jk"Vªh; cpr i= (NSC) | F44: GA55A & Computation Sheet isij lkbt A4 ij Page Setup fd;k gqvk gSA lh/ks nksuksa 'khV dk vkxsa ihNs fizaV ysaA
B45: uohu isa'ku ;kstuk esa osru ds vykok fd;k x;k va'knku ¼vf/kdre 50000) | F45: uohu isa'ku ;kstuk esa osru ls 10% vfuok;Z va'knku ij /kkjk 80CCD(1B) ds rgr NwV feyrh gSA ¼vf/kdre 50000½ ;fn avkius blds vykok 150000 dh cpr iwjh dj yh gSA
B46: yksd Hkfo"; fuf/k (PPF)
B47: isa'ku Iyku gsrq va'knku ¼/kkjk 80CCC½ | D47: Gross Pay
B48: ukckMZ }kjk vf/klwfpr ckW.M~l | D48: =COMPUTATION!M4 -> 770988 | F48: Hello-Friends I prepared a Calculator on Excel Sheet as an Auto Tax Calculator to Calculate the tax, G.A.- 55, Assessment, form 10E & 16 No. forms automatically in minutes for filling the ITR. I distributed this Calculator to all the staff to understand the Tax Calculation & other aspects. I tried to make this simple excel calculator as a Software.
B49: LFkfxr okf"kZdh
B50: lqdU;k lef) ;kstuk esa fuos'k
B51: fe;knh tek cSad o iksLV vkWfQl esa 5 o"kZ ;k vf/kd
B53: US 80GG ¼Hkqxrku fd, x, Hkou fdjk;s ds ckjs es dVkSrh] vf/kdre 24000½ | D53: =IF('G.A. 55'!E26>0, 0,C53) -> 0
B54: US 80GGA ¼vuqeksfnr oSKkfud] lkekftd] xzkeh.k fodkl gsrq fn;k x;k nku½
B55: fpfdRlk chek izhfe;e ¼/kkjk 80D½ | F55: This tax calculator will help you to calculate the Income Tax and clear any related rule in very less time & less efforts.
B56: fodykax vkfJrksa ds fpfdRlk mipkj ¼/kkjk 80DD½
B57: fof'k"V jksxksa ds mipkj gsrq dVkSrh 80DDB ¼vf/kdre 40000 :½
B58: mPp f'k{kk gsrq fy, _.k dk C;kt ¼/kkjk 80E½ | F58: If satisfied you this software share your friends.
B59: dsUnz o jkT; ljdkj dks fn;k x;k nku ¼d Js.kh esa 100% US 80G½ | D59: =C59+C60/2 -> 0
B60: eafnj] efLtn vkSj xkS'kkyk esa fn;k x;k nku ¼[k Js.kh esa 50% US 80G½
B61: LFkkbZ :i ls 'kkjhfjd vleFkZrrk ¼/kkjk 80U½ | F61: ;g odZcqd f'k{kdksa dh mi;ksfxrk ds fy, rS;kj dh xbZ gSA ladyu ,oa x.kuk esa iw.kZ lko/kkuh j[khs xbZ gSA fQj Hkh =qfV ;k fdlh Hkh izdkj dh fofHkUurk dh fLFkfr esa vk;dj foHkkx ds fu;e gh ekU; gSA rS;kjdrkZ dk dksbZ mRrjnkf;Ro ugha gksxkA
B62: /kkjk 89 ds rgr jkgr | C62: =Form10E!L27 -> 0
B63: =COMPUTATION!A50 -> Income Tax Payable | C63: =COMPUTATION!M50 -> 22901
B64: ="Total Rebate of (US 80C, 80CCC,80CCD(1)) = "&COMPUTATION!L25 -> Total Rebate of (US 80C, 80CCC,80CCD(1)) = 98042 | C64: ="Investable Amount = "&(150000-COMPUTATION!M25) -> Investable Amount = 51958
B65: fot; j.koka] v/;kid jktdh; ek/;fed fo|ky;] /kus: chdkusj jkt0 eks0&9828113904, email- vijaysalasar2011@gmail.com | F65: fdlh Hkh izdkj dh rduhdh leL;k@lq>ko ds fy, bZesy djsa& vijaysalasar2011@gmail.com
B67: THIS SHEET IS COMPLETE | C67: GO To G.A. 55 | F67: ;g odZcqd gssamarpura.jimdo.com and vijayranwa.jimdo.com ij miyC/k gSA

Sheet G.A. 55
B1: =" Office of the "&ENTRY!C11 -> Office of the GOVT SECONDARY SCHOOLDHANERU (BIKANER) | V1: आप जीपीएफ़ कटौती मे बदलाव करना चाहते हो तो इच्छित माह मे कटौती की राशि लिखे l सेवानिवृति के कारण कार्मिक की कटौती बंद करनी है तो संबंधित माह के आगे कॉलम मे लिखी राशि DELETE करे l | AD1: =ENTRY!C20 -> 0 | AE1: =IF(AD1=0,0,IF(AD1<=3,3,IF(AD1<=6,1,IF(AD1<=9,2,IF(AD1<=12,3,0))))) -> 0 | AF1: =ENTRY!C16 -> 11
B2: Salary and Deduction Detail for FY 2017-2018 & Assessment Year 2018-19 | AC2: =ENTRY!C16 -> 11 | AD2: =IF(AD1=0,0,IF(AD1<4,1,IF(AD1>9,1,0))) -> 0
B4: Name | D4: =UPPER(ENTRY!C8) -> VIJAY | I4: Designation | L4: =UPPER(ENTRY!C9) -> TEACHER | Q4: PAN NO. | T4: =UPPER(ENTRY!C10) -> EFNPS7790B | AC4: =IF(AND(AC2>10,AD4>9),C17/2-C15/2,0) -> 0 | AD4: =IF(OR(AD1=10,AD1=11,AD1=12,AD1=1,AD1=2),(C19/2-C20),0) -> 0 | AE4: =IF(OR(AD1=10,AD1=11,AD1=12,AD1=1,AD1=2),ROUND(D19/2,0)-ROUND(D20,0)) -> FALSE | AF4: =AD4+AE4 -> 0
AA5: =IF(ENTRY!C12="METRO", 20,10) -> 10 | AD5: =IF(AD1=0,0,IF(AD1=3,D19,VLOOKUP(AD1,A9:D19,4,FALSE)))/2 -> 0
A6: S. No. | B6: MONTH | C6: Allowance | H6: Gross Amount | I6: Deductions | T6: Net Payment | U6: Bill/TV No. & Date | AD6: =IF(AD1=0,0,VLOOKUP(AD1,AG8:AH20,2,FALSE)) -> 0
C7: BASIC | D7: DA | E7: HRA | F7: CCA | G7: Other | I7: NPS | J7: GPF | K7: GPF LOAN | L7: RPMF | M7: SI | N7: SI Loan | O7: HFRH | P7: LIC | Q7: GI Pre. | R7: INCOME TAX | S7: TOTAL | V7: MONTH | X7: GPF DEDU.
A8: 3 | B8: 2017-03-01 | C8: =ENTRY!C14 -> 21290 | D8: =ROUND(C8*132%, 0) -> 28103 | E8: =IF(ENTRY!C$12="metro",C8*20%,IF(ENTRY!C$12="Non-Metro",C8*10%, "")) -> 2129 | F8: =IF(ENTRY!$C$12="metro",IF(ENTRY!$C$13="Jaipur",IF(C8<=7000,190,IF(C8<=9000,300,480)),IF(C8<=7000,70,IF(C8<=9000,130,240))),"") ->  | H8: =SUM(C8:G8) -> 51522 | I8: =IF(ENTRY!$C$17="NPS",ROUND((C8+D8)*10%,0),"") -> 4939 | J8: =IF(ENTRY!C17="GPF",W8,"") ->  | L8: =IF(ENTRY!C$17="GPF", IF(C8<=7000,199,IF(C8<=13000,331,IF(C8<=21000,496,660))), "") ->  | M8: =AB8 -> 2650 | O8: =IF(E8="",IF(C8<13000,ROUND(C8*0.75%,0),IF(C8<19000,ROUND(C8*1.5%,0),ROUND(C8*2%,0))),"") ->  | P8: =ENTRY!C38 -> 0 | R8: =ENTRY!C19 -> 1000 | S8: =SUM(I8:R8) -> 8589 | T8: =H8-S8 -> 42933 | V8: =B8 -> 2017-03-01 | W8: =IF(ENTRY!C$17="GPF", IF(C8<=9000,500,IF(C8<=11000,650,IF(C8<=15000,1100,IF(C8<=20000,1450,IF(C8<=24000,2100, IF(C8<=28000,3300,IF(C8<=31000,4100,IF(C8<=45000,5200,IF(C8<=65000,5700,6200))))))))),"") ->  | X8: 0 | Y8: =IF(X8="","",IF(X8=0,W8,X8)) ->  | Z8: =IF(ENTRY!C18="","",ENTRY!C18) -> 2650 | AA8: =IF(C8<=8500,400,IF(C8<=11000,550,IF(C8<=18000,1100,IF(C8<=28000,1550,2650)))) -> 1550 | AB8: =IF(Z8="",0,IF(Z8>0,Z8,AA8)) -> 2650
A9: 4 | B9: 2017-04-01 | C9: =C8 -> 21290 | D9: =ROUND(C9*136%, 0) -> 28954 | E9: =IF(ENTRY!C$12="metro",C9*20%,IF(ENTRY!C$12="Non-Metro",C9*10%, "")) -> 2129 | F9: =IF(ENTRY!$C$12="metro",IF(ENTRY!$C$13="Jaipur",IF(C9<=7000,190,IF(C9<=9000,300,480)),IF(C9<=7000,70,IF(C9<=9000,130,240))),"") ->  | G9: =IF(G8>0,G8,"") ->  | H9: =SUM(C9:G9) -> 52373 | I9: =IF(ENTRY!$C$17="NPS",ROUND((C9+D9)*10%,0),"") -> 5024 | J9: =IF(J8="","",IF(J8>W9,J8,W9)) ->  | K9: =IF(K8>0,K8,"") ->  | L9: =IF(ENTRY!C$17="GPF", IF(C9<=7000,199,IF(C9<=13000,331,IF(C9<=21000,496,660))), "") ->  | M9: =M8 -> 2650 | N9: =IF(N8>0,N8,"") ->  | O9: =IF(E9="",IF(C9<13000,ROUND(C9*0.75%,0),IF(C9<19000,ROUND(C9*1.5%,0),ROUND(C9*2%,0))),"") ->  | P9: =IF(P8>0,P8,"") ->  | Q9: 253 | R9: =R8 -> 1000 | S9: =SUM(I9:R9) -> 8927 | T9: 43446 | V9: =B9 -> 2017-04-01 | W9: =IF(ENTRY!C$17="GPF", IF(C9<=9000,500,IF(C9<=11000,650,IF(C9<=15000,1100,IF(C9<=20000,1450,IF(C9<=24000,2100, IF(C9<=28000,3300,IF(C9<=31000,4100,IF(C9<=45000,5200,IF(C9<=65000,5700,6200))))))))),"") ->  | X9: =X8 -> 0 | Y9: =IF(X9="","",IF(X9=0,W9,X9)) ->  | AG9: 4 | AH9: 136
A10: 5 | B10: 2017-05-01 | C10: =C9 -> 21290 | D10: 28954 | E10: =IF(ENTRY!C$12="metro",C10*20%,IF(ENTRY!C$12="Non-Metro",C10*10%, "")) -> 2129 | F10: =IF(ENTRY!$C$12="metro",IF(ENTRY!$C$13="Jaipur",IF(C10<=7000,190,IF(C10<=9000,300,480)),IF(C10<=7000,70,IF(C10<=9000,130,240))),"") ->  | G10: =IF(G9>0,G9,"") ->  | H10: =SUM(C10:G10) -> 52373 | I10: =IF(ENTRY!$C$17="NPS",ROUND((C10+D10)*10%,0),"") -> 5024 | J10: =IF(J9="","",IF(J9>W10,J9,W10)) ->  | K10: =K9 ->  | L10: =IF(ENTRY!C$17="GPF", IF(C10<=7000,205,IF(C10<=13000,341,IF(C10<=21000,511,680))), "") ->  | M10: =M9 -> 2650 | N10: =IF(N9>0,N9,"") ->  | O10: =IF(E10="",IF(C10<13000,ROUND(C10*0.75%,0),IF(C10<19000,ROUND(C10*1.5%,0),ROUND(C10*2%,0))),"") ->  | P10: =P9 ->  | R10: =R9 -> 1000 | S10: 8674 | T10: 43699 | V10: 2017-05-01 | W10: =IF(ENTRY!C$17="GPF", IF(C10<=9000,500,IF(C10<=11000,650,IF(C10<=15000,1100,IF(C10<=20000,1450,IF(C10<=24000,2100, IF(C10<=28000,3300,IF(C10<=31000,4100,IF(C10<=45000,5200,IF(C10<=65000,5700,6200))))))))),"") ->  | X10: =X9 -> 0 | AG10: =AG9+1 -> 5 | AH10: 136
A11: 6 | B11: 2017-06-01 | C11: =C10 -> 21290 | D11: 28954 | E11: =IF(ENTRY!C$12="metro",C11*20%,IF(ENTRY!C$12="Non-Metro",C11*10%, "")) -> 2129 | F11: =IF(ENTRY!$C$12="metro",IF(ENTRY!$C$13="Jaipur",IF(C11<=7000,190,IF(C11<=9000,300,480)),IF(C11<=7000,70,IF(C11<=9000,130,240))),"") ->  | H11: 52373 | I11: =IF(ENTRY!$C$17="NPS",ROUND((C11+D11)*10%,0),"") -> 5024 | L11: =IF(ENTRY!C$17="GPF", IF(C11<=7000,205,IF(C11<=13000,341,IF(C11<=21000,511,680))), "") ->  | M11: 2650 | O11: =IF(E11="",IF(C11<13000,ROUND(C11*0.75%,0),IF(C11<19000,ROUND(C11*1.5%,0),ROUND(C11*2%,0))),"") ->  | R11: 1000 | S11: 8674 | T11: 43699 | V11: 2017-06-01 | W11: =IF(ENTRY!C$17="GPF", IF(C11<=9000,500,IF(C11<=11000,650,IF(C11<=15000,1100,IF(C11<=20000,1450,IF(C11<=24000,2100, IF(C11<=28000,3300,IF(C11<=31000,4100,IF(C11<=45000,5200,IF(C11<=65000,5700,6200))))))))),"") ->  | X11: 0 | AG11: =AG10+1 -> 6 | AH11: 136
A12: 7 | B12: 2017-07-01 | C12: =ROUNDUP(ROUND(1.03*C11, 0),-1) -> 21930 | D12: 29825 | E12: =IF(ENTRY!C$12="metro",C12*20%,IF(ENTRY!C$12="Non-Metro",C12*10%, "")) -> 2193 | F12: =IF(ENTRY!$C$12="metro",IF(ENTRY!$C$13="Jaipur",IF(C12<=7000,190,IF(C12<=9000,300,480)),IF(C12<=7000,70,IF(C12<=9000,130,240))),"") ->  | H12: 53948 | I12: =IF(ENTRY!$C$17="NPS",ROUND((C12+D12)*10%,0),"") -> 5176 | L12: =IF(ENTRY!C$17="GPF", IF(C12<=7000,205,IF(C12<=13000,341,IF(C12<=21000,511,680))), "") ->  | M12: 2650 | O12: =IF(E12="",IF(C12<13000,ROUND(C12*0.75%,0),IF(C12<19000,ROUND(C12*1.5%,0),ROUND(C12*2%,0))),"") ->  | R12: 1000 | S12: 8826 | T12: 45122 | V12: 2017-07-01 | W12: =IF(ENTRY!C$17="GPF", IF(C12<=9000,500,IF(C12<=11000,650,IF(C12<=15000,1100,IF(C12<=20000,1450,IF(C12<=24000,2100, IF(C12<=28000,3300,IF(C12<=31000,4100,IF(C12<=45000,5200,IF(C12<=65000,5700,6200))))))))),"") ->  | X12: 0 | AG12: 7 | AH12: 136
A13: 8 | B13: 2017-08-01 | C13: =C12 -> 21930 | D13: 29825 | E13: =IF(ENTRY!C$12="metro",C13*20%,IF(ENTRY!C$12="Non-Metro",C13*10%, "")) -> 2193 | F13: =IF(ENTRY!$C$12="metro",IF(ENTRY!$C$13="Jaipur",IF(C13<=7000,190,IF(C13<=9000,300,480)),IF(C13<=7000,70,IF(C13<=9000,130,240))),"") ->  | H13: 53948 | I13: =IF(ENTRY!$C$17="NPS",ROUND((C13+D13)*10%,0),"") -> 5176 | L13: =IF(ENTRY!C$17="GPF", IF(C13<=7000,205,IF(C13<=13000,341,IF(C13<=21000,511,680))), "") ->  | M13: 2650 | O13: =IF(E13="",IF(C13<13000,ROUND(C13*0.75%,0),IF(C13<19000,ROUND(C13*1.5%,0),ROUND(C13*2%,0))),"") ->  | R13: 1000 | S13: 8826 | T13: 45122 | V13: 2017-08-01 | W13: =IF(ENTRY!C$17="GPF", IF(C13<=9000,500,IF(C13<=11000,650,IF(C13<=15000,1100,IF(C13<=20000,1450,IF(C13<=24000,2100, IF(C13<=28000,3300,IF(C13<=31000,4100,IF(C13<=45000,5200,IF(C13<=65000,5700,6200))))))))),"") ->  | X13: 0 | AG13: 8 | AH13: 136
A14: 9 | B14: 2017-09-01 | C14: =C13 -> 21930 | D14: 29825 | E14: =IF(ENTRY!C$12="metro",C14*20%,IF(ENTRY!C$12="Non-Metro",C14*10%, "")) -> 2193 | F14: =IF(ENTRY!$C$12="metro",IF(ENTRY!$C$13="Jaipur",IF(C14<=7000,190,IF(C14<=9000,300,480)),IF(C14<=7000,70,IF(C14<=9000,130,240))),"") ->  | H14: 53948 | I14: =IF(ENTRY!$C$17="NPS",ROUND((C14+D14)*10%,0),"") -> 5176 | L14: =IF(ENTRY!C$17="GPF", IF(C14<=7000,205,IF(C14<=13000,341,IF(C14<=21000,511,680))), "") ->  | M14: 2650 | N14: =N13 ->  | R14: 1000 | S14: 8826 | T14: 45122 | V14: 2017-09-01 | W14: =IF(ENTRY!C$17="GPF", IF(C14<=9000,500,IF(C14<=11000,650,IF(C14<=15000,1100,IF(C14<=20000,1450,IF(C14<=24000,2100, IF(C14<=28000,3300,IF(C14<=31000,4100,IF(C14<=45000,5200,IF(C14<=65000,5700,6200))))))))),"") ->  | X14: 0 | AG14: 9 | AH14: 136
A15: 10 | B15: 2017-10-01 | C15: =C14 -> 21930 | D15: =ROUND(C15*139%, 0) -> 30483 | E15: =IF(ENTRY!C$12="metro",C15*20%,IF(ENTRY!C$12="Non-Metro",C15*10%, "")) -> 2193 | F15: =IF(ENTRY!$C$12="metro",IF(ENTRY!$C$13="Jaipur",IF(C15<=7000,190,IF(C15<=9000,300,480)),IF(C15<=7000,70,IF(C15<=9000,130,240))),"") ->  | H15: 54606 | I15: =IF(ENTRY!$C$17="NPS",ROUND((C15+D15)*10%,0),"") -> 5241 | L15: =IF(ENTRY!C$17="GPF", IF(C15<=7000,205,IF(C15<=13000,341,IF(C15<=21000,511,680))), "") ->  | M15: 2650 | R15: 1000 | S15: 8891 | T15: 45715 | V15: 2017-10-01 | W15: =IF(ENTRY!C$17="GPF", IF(C15<=9000,500,IF(C15<=11000,650,IF(C15<=15000,1100,IF(C15<=20000,1450,IF(C15<=24000,2100, IF(C15<=28000,3300,IF(C15<=31000,4100,IF(C15<=45000,5200,IF(C15<=65000,5700,6200))))))))),"") ->  | X15: 0 | AC15: =23950-9220 -> 14730 | AG15: 10 | AH15: 139
A16: 11 | B16: 2017-11-01 | C16: =IF(ENTRY!C$16=11,Pay!E$16,C15) -> 57200 | D16: =IF(ENTRY!C$16=11,ROUND(C16*5%,0),ROUND(C16*139%,0)) -> 2860 | E16: =IF(ENTRY!C$16=11,IF(ENTRY!C$12="metro",C16*16%,IF(ENTRY!C$12="Non-Metro",C16*8%, "")),IF(ENTRY!C$12="non-eligible","",ROUND(C16*AA$5%,0))) -> 4576 | F16: =IF(AF$1=11,IF(ENTRY!$C$12="metro",IF(ENTRY!$C$13="Jaipur",IF(C16<=23100,620,1000),IF(C16<=23100,320,620)),""),F15) ->  | H16: 64636 | I16: =IF(ENTRY!$C$17="NPS",ROUND((C16+D16)*10%,0),"") -> 6006 | L16: =IF(ENTRY!C$17="GPF",IF(ENTRY!C$16=11,IF(C16<=18000,205,IF(C16<=33500,341,IF(C16<=54000,511,680))),IF(C16<=7000,205,IF(C16<=13000,341,IF(C16<=21000,511,680)))),L15) ->  | M16: 2650 | R16: 1000 | S16: 9656 | T16: 54980 | V16: 2017-11-01 | W16: =IF(ENTRY!C$17="GPF", IF(ENTRY!C$16=11,IF(C16<=23100,500,IF(C16<=28500,650,IF(C16<=38500,1100,IF(C16<=51500,1450,IF(C16<=62000,2100, IF(C16<=72000,3300,IF(C16<=80000,4100,IF(C16<=116000,5200,IF(C16<=167000,5700,6200))))))))),W15),"") ->  | X16: 0 | AG16: 11 | AH16: =IF(AF$1=11,5,139) -> 5
A17: 12 | B17: 2017-12-01 | C17: =IF(ENTRY!C$16=12,Pay!E$16,C16) -> 57200 | D17: =IF(OR(ENTRY!C$16=12,,ENTRY!C$16=11),ROUND(C17*5%,0),ROUND(C17*139%,0)) -> 2860 | E17: =IF(OR(ENTRY!C$16=12,ENTRY!C$16=11),IF(ENTRY!C$12="metro",C17*16%,IF(ENTRY!C$12="Non-Metro",C17*8%,"")),IF(ENTRY!C$12="non-eligible","",ROUND(C17*AA$5%,0))) -> 4576 | F17: =IF(AF$1=12,IF(ENTRY!$C$12="metro",IF(ENTRY!$C$13="Jaipur",IF(C17<=23100,620,1000),IF(C17<=23100,320,620)),""),F16) ->  | H17: 64636 | I17: =IF(ENTRY!$C$17="NPS",ROUND((C17+D17)*10%,0),"") -> 6006 | L17: =IF(ENTRY!C$16=12,IF(ENTRY!C$17="GPF",IF(C17<=18000,205,IF(C17<=33500,341,IF(C17<=54000,511,680))),""),L16) ->  | M17: 2650 | R17: =R16 -> 1000 | S17: 9656 | T17: 54980 | V17: 2017-12-01 | W17: =IF(ENTRY!C$17="GPF", IF(ENTRY!C$16=12,IF(C17<=23100,500,IF(C17<=28500,650,IF(C17<=38500,1100,IF(C17<=51500,1450,IF(C17<=62000,2100, IF(C17<=72000,3300,IF(C17<=80000,4100,IF(C17<=116000,5200,IF(C17<=167000,5700,6200))))))))),W16),"") ->  | X17: 0 | AG17: 12 | AH17: =IF(OR(AF1=11,AF$1=12),5,139) -> 5
A18: 1 | B18: 2018-01-01 | C18: =IF(ENTRY!C$16=1,Pay!E$16,C17) -> 57200 | D18: =IF(OR(ENTRY!C$16=12,ENTRY!C$16=11,ENTRY!C$16=1),ROUND(C18*5%,0),ROUND(C18*139%,0)) -> 2860 | E18: =IF(OR(ENTRY!C$16=1,ENTRY!C$16=12,ENTRY!C$16=11),IF(ENTRY!C$12="metro",C18*16%,IF(ENTRY!C$12="Non-Metro",C18*8%, "")),IF(ENTRY!C$12="non-eligible","",ROUND(C18*AA$5%,0))) -> 4576 | F18: =IF(AF$1=1,IF(ENTRY!$C$12="metro",IF(ENTRY!$C$13="Jaipur",IF(C18<=23100,620,1000),IF(C18<=23100,320,620)),""),F17) ->  | H18: 64636 | I18: =IF(ENTRY!$C$17="NPS",ROUND((C18+D18)*10%,0),"") -> 6006 | L18: =IF(ENTRY!C$16=1,IF(ENTRY!C$17="GPF",IF(C18<=18000,205,IF(C18<=33500,341,IF(C18<=54000,511,680))),""),L17) ->  | M18: 2650 | R18: =R17 -> 1000 | S18: 9656 | T18: 54980 | V18: 2018-01-01 | W18: =IF(ENTRY!C$17="GPF", IF(ENTRY!C$16=1,IF(C18<=23100,500,IF(C18<=28500,650,IF(C18<=38500,1100,IF(C18<=51500,1450,IF(C18<=62000,2100, IF(C18<=72000,3300,IF(C18<=80000,4100,IF(C18<=116000,5200,IF(C18<=167000,5700,6200))))))))),W17),"") ->  | X18: 0 | AG18: 1 | AH18: =IF(OR(AF$1=1,AF1=11,AF1=12),5,139) -> 5
A19: 2 | B19: 2018-02-01 | C19: =IF(ENTRY!C$16=2,Pay!E$16,C18) -> 57200 | D19: =IF(ENTRY!C$16<=12,ROUND(C19*5%,0),ROUND(C19*139%,0)) -> 2860 | E19: =IF(OR(ENTRY!C$16=2,ENTRY!C$16<=12),IF(ENTRY!C$12="metro",C19*16%,IF(ENTRY!C$12="Non-Metro",C19*8%, "")),IF(ENTRY!C$12="non-eligible","",ROUND(C19*AA$5%,0))) -> 4576 | F19: =IF(AF$1=2,IF(ENTRY!$C$12="metro",IF(ENTRY!$C$13="Jaipur",IF(C19<=23100,620,1000),IF(C19<=23100,320,620)),""),F18) ->  | H19: 64636 | I19: =IF(ENTRY!$C$17="NPS",ROUND((C19+D19)*10%,0),"") -> 6006 | L19: =IF(ENTRY!C$16=2,IF(ENTRY!C$17="GPF",IF(C19<=18000,210,IF(C19<=33500,349,IF(C19<=54000,522,695))),""),L18) ->  | M19: 2650 | R19: =R18 -> 1000 | S19: 9656 | T19: 54980 | V19: 2018-02-01 | W19: =IF(ENTRY!C$17="GPF", IF(ENTRY!C$16=2,IF(C19<=23100,500,IF(C19<=28500,650,IF(C19<=38500,1100,IF(C19<=51500,1450,IF(C19<=62000,2100, IF(C19<=72000,3300,IF(C19<=80000,4100,IF(C19<=116000,5200,IF(C19<=167000,5700,6200))))))))),W18),"") ->  | X19: 0 | AG19: 2 | AH19: =IF(OR(AF$1=1,AF1=11,AF1=12,AF1=2),5,139) -> 5
B20: Surrender | C20: =IF(AD1=0,0,IF(AD1=3,C19,VLOOKUP(AD1,A9:C19,3,FALSE)))/2 -> 0 | D20: =ROUND(C20*AD6/100,0) -> 0 | H20: 0 | S20: 0 | T20: 0 | V20: यदि आप सेवानिवृति के कारण कार्मिक की SI कटौती बंद करना चाहते है तो ENTRY शीट मे CELL C18 मे लिखी राशि DELETE करे l | AG20: 3 | AH20: =IF(OR(AF$1=1,AF1=11,AF1=12,AF1=2,AF1=3),5,139) -> 5
B21: DA Arrear 136% | D21: =(D9-D8)*3 -> 2553 | H21: 2553 | I21: =IF(ENTRY!C17="NPS",ROUND((ROUND(136%*C8,0)-ROUND(132%*C8,0))*10%,0)*3,0) -> 255 | J21: =IF(ENTRY!$C$17="GPF",D21,"") ->  | S21: 255 | T21: 2298 | AE21: =12816-1198 -> 11618
B22: DA Arrear 139% | D22: =3*(D15-D14)+IF(AD1=0,0,IF(AND(AD1>6,AD1<10),ROUND(C20*0.03,0),0)) -> 1974 | H22: 1974 | I22: =IF(ENTRY!$C$17="NPS",ROUND((ROUND(139%*C12,0)-ROUND(136%*C12,0))*10%,0)*3,0) -> 198 | J22: =IF(ENTRY!$C$17="GPF",D22,"") ->  | S22: 198 | T22: 1776
B23: Bonus | G23: =IF(ENTRY!C15>4800, "", 6774) -> 6774 | H23: 6774 | S23: 0 | T23: 6774
B24: Fixation Arrear | C24: =IF(ENTRY!C16="NO",0,IF(ENTRY!C16=11,(C16-C15),IF(ENTRY!C16=12,(C17-C15)*2,IF(ENTRY!C16=1,(C18-C15)*3,IF(ENTRY!C16=2,(C19-C15)*4,""))))+AD4) -> 35270 | D24: =IF(ENTRY!C16="NO",0,IF(ENTRY!C16=11,(D16-D15),IF(ENTRY!C16=12,(D17-D15)*2,IF(ENTRY!C16=1,(D18-D15)*3,IF(ENTRY!C16=2,(D19-D15)*4,""))))+AE4) -> -27623 | E24: =IF(ENTRY!C12="non-eligible",0,IF(ENTRY!$C$16=11,(E16-E15),IF(ENTRY!$C$16=12,(E17-E15)*2,IF(ENTRY!$C$16=1,(E18-E15)*3,IF(ENTRY!$C$16=2,(E19-E15)*4,0))))) -> 2383 | F24: =IF(OR(ENTRY!C12="non-metro",ENTRY!C12="non-eligible"),0,IF(ENTRY!$C$16=11,(F16-F15),IF(ENTRY!$C$16=12,(F17-F15)*2,IF(ENTRY!$C$16=1,(F18-F15)*3,IF(ENTRY!$C$16=2,(F19-F15)*4,""))))) -> 0 | H24: 10030 | I24: =IF(ENTRY!$C$17="NPS", IF(ENTRY!C16=11,ROUND(((C16+D16)-(C15+D15))*10%,0),IF(ENTRY!C16=12,ROUND(((C17+D17)-(C15+D15))*10%,0)*2,IF(ENTRY!C16=1,ROUND(((C18+D18)-(C15+D15))*10%,0)*3,IF(ENTRY!C16=2,ROUND(((C19+D19)-(C15+D15))*10%,0)*4,"")))),"") -> 765 | J24: =IF(ENTRY!C17="GPF",IF(ENTRY!$C$16=11,(J16-J15),IF(ENTRY!$C$16=12,(J17-J15)*2,IF(ENTRY!$C$16=1,(J18-J15)*3,IF(ENTRY!$C$16=2,(J19-J15)*4,"")))),"") ->  | L24: =IF(ENTRY!M$17="GPF", IF(ENTRY!$C$16=11,(L16-L15),IF(ENTRY!$C$16=12,(L17-L15)*2,IF(ENTRY!$C$16=1,(L18-L15)*3,IF(ENTRY!$C$16=2,(L19-L15)*4,"")))),"") ->  | S24: 765 | T24: 9265
B25: Other Arre. | H25: 0 | S25: 0 | T25: 0
B26: Total | C26: =SUM(C8:C25) -> 436950 | D26: =SUM(D8:D25) -> 223267 | E26: 37975 | F26: 0 | G26: 6774 | H26: 704966 | I26: 66022 | J26: 0 | K26: 0 | L26: 0 | M26: 31800 | N26: 0 | O26: 0 | P26: 0 | Q26: 253 | R26: 12000 | S26: 110075 | T26: =(SUM(T8:T25)) -> 594891
V27: आपको बोनस नहीं मिला है तो सेल G23 मे लिखी राशि डिलीट कर दें l
H29: gLrk{kj deZpkjh | N29: gLrk{kj vkgj.k ,oa forj.k vf/kdkjh
A32: VR | B32: VR

Sheet COMPUTATION
A1: ='G.A. 55'!B1 -> Office of the GOVT SECONDARY SCHOOLDHANERU (BIKANER)
A2: vk;dj x.kuk izi= foRrh; o"kZ 2017&2018 ¼dj fu/kkZj.k o"kZ 2018&2019½
A3: 1 | B3: uke deZpkjh % | E3: ='G.A. 55'!D4 -> VIJAY | I3: in % | J3: ='G.A. 55'!L4 -> TEACHER | L3: PAN NO :- | M3: ='G.A. 55'!T4 -> EFNPS7790B
A4: 2 | B4: osru en esa vk; ¼HkÙkksa lfgr½ | G4: ='G.A. 55'!H26 -> 704966 | I4: =IF(ENTRY!C17="GPF", "", "(+ Govt. Contri. towards NPS)") -> (+ Govt. Contri. towards NPS) | L4: =IF(ENTRY!C17="NPS", L17,"") -> 66022 | M4: =G4+L17 -> 770988 | S4: =IF(L4="","","ljdkj }kjk ,uih,l esa tks jkf'k tek djokbZ xbZ gSa] og jkf'k ;gk¡ ldy vk; esa tksM+h xbZ gSaA") -> ljdkj }kjk ,uih,l esa tks jkf'k tek djokbZ xbZ gSa] og jkf'k ;gk¡ ldy vk; esa tksM+h xbZ gSaA
A5: 3 | B5: x`g fdjk;k] HkÙkk /kkjk 10¼13&A½ ds vUrxZr ,oa /kkjk 10¼14½ ds vUrxZr vU; HkÙks tks dj eqDÙk gSA | M5: =ENTRY!D20+ENTRY!C24 -> 0
A6: 4 | B6: 'ks"k ¼2&3½ | M6: =M4-M5 -> 770988
A7: 5 | B7: ¼i½euksjatu HkÙkk /kkjk 16 ¼ii½ ds vUrxZr ¼ vf/kdre lhek : 5000 ½ | M7: =ENTRY!C23 -> 0
A8: 6 | B8: 'ks"k ¼4&5½ | M8: =M6-M7 -> 770988
A9: 7 | B9: ¼v½ x`g lEifÙk ls vk;% ¼1½ Lo;a ds mi;ksx esa &'kwU; | I9: ¼2½ izkIr fdjk;k #- | K9: =ENTRY!C27 -> 0 | M9: =M8+K9 -> 770988
B10: ¼c½ ?kVk;sa | D10: ejEer fdjk;s dk 30% | G10: x`g _.k ij C;kt | I10: x`gdj | K10: ;ksx 7¼c½
D11: =ROUND((K9-I11)*0.3,0) -> 0 | G11: =ENTRY!C36 -> 0 | I11: =ENTRY!C28 -> 0 | K11: =D11+G11+I11 -> 0 | M11: =M9-K11 -> 770988
A12: 8 | B12: vU; óksrksa ls vk; %&
B13: NSC ij C;kt | E13: FDR ls C;kt | G13: Bonds ls C;kt | I13: cpr [kkrs ij C;kt | K13: vU; vk;
B14: =ENTRY!C29 -> 0 | E14: =ENTRY!C31 -> 0 | G14: =ENTRY!C32 -> 0 | I14: =ENTRY!C30 -> 0 | K14: =ENTRY!C33 -> 0
A15: 9 | B15: ldy dqy vk; ;ksx ¼7$8½ | M15: =M11+B14+E14+G14+I14+K14 -> 770988
A16: 10 | B16: (A)?kVkbZ;s v/;k; VIA ds vUrxZr dVkSSfr;k¡ %& Section US 80C, 80CCC,80CCD (1) Maximum Limit 150000.00)
B17: (i) | C17: jkT; chek (SI) | G17: ='G.A. 55'!M26 -> 31800 | H17: (x) | I17: uohu isa'ku ;kstuk esa va'knku CPF | L17: =IF(ENTRY!C17="GPF",0,'G.A. 55'!I26) -> 66022
B18: (ii) | C18: thou chek izhfe;e (LIC) | G18: =ENTRY!C39+'G.A. 55'!P26 -> 0 | H18: (xi) | I18: isa'ku Iyku gsrq va'knku ¼80ccc½ | L18: =ENTRY!C47 -> 0
B19: (iii) | C19: jk"Vªh; cpr i= (NSC) | G19: =ENTRY!C44 -> 0 | H19: (xii) | I19: jk"Vªh; cpr i= ij vnÙk C;kt | L19: =ENTRY!C29 -> 0
B20: (iv) | C20: yksd Hkfo"; fuf/k (PPF) | G20: =ENTRY!C46 -> 0 | H20: (xiii) | I20: V~;w'ku Qhl ¼nks cPpksa ds fy,½ | L20: =ENTRY!C41 -> 0
B21: (v) | C21: E;qpqvy QaM (MF) | G21: =ENTRY!C42 -> 0 | H21: (xiv) | I21: ukckMZ }kjk vf/klwfpr ckW.M~l | L21: =ENTRY!C48 -> 0
B22: (vi) | C22: lkekU; izko/kk;h fuf/k (GPF) | G22: =IF(ENTRY!C17="GPF", 'G.A. 55'!J26,"") ->  | H22: (xv) | I22: lqdU;k le`f) [kkrs esa fuos'k | L22: =ENTRY!C50 -> 0
B23: (vii) | C23: lkeqfgd chek izhfe;e(G.Ins.) | G23: 220 | H23: (xvi) | I23: ih-,y-vkbZ- (PLI) | L23: =ENTRY!C40 -> 0 | S23: =IF(L26="","","ljdkj }kjk ,uih,l esa tek djkbZ xbZ jkf'k ldy vk; esa tksM+h xbZ Fkh] vr% vc ogh jkf'k bl dkWye esa /kkjk 80lhlhMh¼2½ ds rgr i`Fkd NwV esa n'kkZ;h xbZ gSaA ;g jkf'k 80lh dh fyfeV 150000 ls vfrfjDr vk;dj NwV ds nk;jsa esa vkrh gSaA") -> ljdkj }kjk ,uih,l esa tek djkbZ xbZ jkf'k ldy vk; esa tksM+h xbZ Fkh] vr% vc ogh jkf'k bl dkWye esa /kkjk 80lhlhMh¼2½ ds rgr i`Fkd NwV esa n'kkZ;h xbZ gSaA ;g jkf'k 80lh dh fyfeV 150000 ls vfrfjDr vk;dj NwV ds nk;jsa esa vkrh gSaA
B24: (viii) | C24: ;w- ,y- vkbZ- ih- (ULIP) | G24: =ENTRY!C43 -> 0 | H24: (xvii) | I24: fe;knh tek 5 o"kZ ;k vf/kd | L24: =ENTRY!C51 -> 0
B25: (ix) | C25: x`g _.k fdLr (CAPITAL) | G25: =ENTRY!C35 -> 0 | H25: ;ksx ( i ls xvii ) | L25: =SUM(G17:G25)+SUM(L17:L24) -> 98042 | M25: =IF(L25<150001, L25, 150000) -> 98042 | P25: =IF(L25>150000,L25-150000,0) -> 0 | Q25: =IF(L17>0,MIN(L17,P25),0) -> 0
B26: (B) ?kVkbZ;s /kkjk 80CCE] 80CCD(2) ljdkj }kjk isa'ku ;kstuk esa va'knku¼osru dk 10%) | L26: =L4 -> 66022 | Q26: =ENTRY!C45 -> 0
B27: (C) ?kVkbZ;s /kkjk 80CCD(1B) Loa }kjk uohu isa'ku ;kstuk esa va'knku ¼vf/kdre 50000) | L27: =IF(Q27>50000,50000,Q27) -> 0 | Q27: =Q25+Q26 -> 0
B28: Qualifying Amount US80CCE | I28: =IF('G.A. 55'!I7="CPF", "+US 80CCD(2)", "") ->  | K28: ;ksx 10(A+B+C) | M28: =SUM(M25,L26,L27) -> 164064
A29: 11 | B29: vU; dVkSfr;k¡ %&
B30: 1- /kkjk 80D fpfdRlk chek izhfe;e ¼vf/kdre nks cPpksa ds fy, :25000]ekrk&firk ds fy, :25000 lhfu;j flVhtu :30000½ | M30: =ENTRY!C55 -> 0
B31: 2- /kkjk 80DD fodykax vkfJrksa ds fpfdRlk mipkj ¼vf/kdre 75]000 rFkk 80% fodykaxrk ij 125]000½ | M31: =ENTRY!C56 -> 0
B32: 3- /kkjk 80DDB fof'k"V jksxksa ds mipkj gsrq dVkSrh ¼vf/kdre :40]000] lhfu;j flVhtu gsrq : 60]000½ | M32: =ENTRY!C57 -> 0
B33: 4- /kkjk 80E mPp f'k{kk gsrq fy, _.k dk C;kt | M33: =ENTRY!C58 -> 0
B34: 5- /kkjk 80G /kekZFkZ laLFkkvksa vkfn dks fn;s nku ¼ d Js.kh esa 100 izfr'kr ,oa [k Js.kh esa 50 izfr'kr½ | M34: =ENTRY!D59 -> 0
B35: 6- /kkjk 80U LFkkbZ :i ls 'kkjhfjd vleFkZrk dh n'kk esa ¼vf/kdre 75000 rFkk 80% ij 125000½ | M35: =ENTRY!C61 -> 0
B36: 7- /kkjk 80 TTA cpr [kkrs ij izkIr C;kt vf/kdre :- 10,000 (194(IA)) | M36: =ENTRY!D30 -> 0
B37: dqy ;ksx 11 ¼ 1 ls 7 rd ½ | M37: =SUM(M30:M36) -> 0
A38: 12 | B38: dqy dVkSrh ( 10 + 11) | M38: =M28+M37 -> 164064
A39: 13 | B39: dj ;ksX; vk; ( 9 - 12 ) | M39: =(M15-M38) -> 606924
A40: 14 | B40: dqy vk; dh jkf'k dks lEiw.kZ djuk ¼ nl ds xq.kd esa ½ /kkjk 288A | M40: =ROUND(M39,-1) -> 606920
A41: 15 | B41: vk;dj dh x.kuk | M41: =ROUND(IF(M40<=250000,0,IF(M40<=500000,(M40-250000)*0.05,IF(M40<=1000000,12500+(M40-500000)*0.2,IF(M40>1000000,112500+(M40-1000000)*0.3,"0")))),0) -> 33884
B42: NwV &/kkjk 87¼A½ ds vUrxZr ¼3.5 yk[k rd dh dj ;ksX; vk; gksus ij NwV :- 2500 rd½ | M42: =IF(M40>350000,0,IF(M41<2501,M41,2500)) -> 0
B43: 'ks"k vk;dj | M43: =M41-M42 -> 33884
B44: f'k{kk midj 2% | F44: =ROUND((M43*0.02),0) -> 678 | H44: lSd.Mjh vkSj mPp f'k{kk vf/kHkkj 1% | L44: =ROUND((M43*0.01),0) -> 339 | M44: =F44+L44 -> 1017
B45: dqy vk;dj ¼3$4½ | M45: =M43+M44 -> 34901
A46: 16 | B46: ?kVkb;s %& jkgr /kkjk 89 ds rgr | M46: =ENTRY!C62 -> 0
A47: 17 | B47: dqy vk;dj ns;rk | M47: =M45-M46 -> 34901
A48: 18 | B48: vk;dj dVkSrh dk fooj.k | E48: flrEcj 2017rd | G48: fnlEcj 2017 rd | I48: tuojh 2018 | J48: Qjojh 2018 | K48: ,fj;j ls VhMh,l
E49: =SUM('G.A. 55'!R8:R14) -> 7000 | G49: =SUM('G.A. 55'!R15:R17)+E49 -> 10000 | I49: ='G.A. 55'!R18 -> 1000 | J49: ='G.A. 55'!R19 -> 1000 | K49: =SUM('G.A. 55'!R20:R25) -> 0 | M49: ='G.A. 55'!R26 -> 12000
A50: =IF(M47>M49,"Income Tax Payable",IF(M47<M49,"Income Tax Refundable","Income Tax Payble/Refundable")) -> Income Tax Payable | M50: =IF(M47>M49,M47-M49,M49-M47) -> 22901
B52: Date :- | D52: =TODAY() -> 2017-12-28 | L52: (Signature of Employee)
L53: =E3 -> VIJAY
B55: Prepared by : VIJAY RANWA TEACHER,
B56: Govt Secondary School Dhaneru, BIKANER Mo. +919024228324
B57: Email- vijaysalasar2011@gmail.com | J57: www.gssamarpura.jimdo.com

Sheet HRA
B1: THIS SOFTWARE MADE BY VIJAY RANWA | M1: RECEIPT OF HOUSE RENT
B2: TEACHER GOVT SECONDARY SCHOOL DHANERU, BIKANER
B3: PARTIAL HRA EXEMPTION WORK SHEET | M3: (Under section 1 (13-A) of Income Tax Act)
B4: MONTHS | C4: "Y" | D4: Basic Pay. | E4: HRA | G4: Please select months by typing "Y"
B5: MARCH 17 | C5: Y | D5: =IF(C5="Y",'G.A. 55'!C8+ROUND((136%*'G.A. 55'!C8),0),"0") -> 50244 | E5: =IF(C5="Y",'G.A. 55'!E8,"0") -> 2129 | U5: Date :- | V5: =TODAY() -> 2017-12-28
B6: APRIL 17 | C6: Y | D6: =IF(C6="Y",'G.A. 55'!C9+ROUND((136%*'G.A. 55'!C9),0),"0") -> 50244 | E6: =IF(C6="Y",'G.A. 55'!E9,"0") -> 2129 | G6: After selecting months, give rent paid amount.
B7: MAY 17 | C7: Y | D7: =IF(C7="Y",'G.A. 55'!C10+ROUND((136%*'G.A. 55'!C10),0),"0") -> 50244 | E7: =IF(C7="Y",'G.A. 55'!E10,"0") -> 2129 | N7: =CONCATENATE(" I Owner ", UPPER(ENTRY!C22)) -> I Owner
B8: JUNE 17 | C8: Y | D8: =IF(C8="Y",'G.A. 55'!C11+ROUND((136%*'G.A. 55'!C11),0),"0") -> 50244 | E8: =IF(C8="Y",'G.A. 55'!E11,"0") -> 2129 | O8: =" Received with Thanks from "&ENTRY!C8&"" -> Received with Thanks from VIJAY
B9: JULY 17 | C9: Y | D9: =IF(C9="Y",'G.A. 55'!C12+ROUND((139%*'G.A. 55'!C12),0),"0") -> 52413 | E9: =IF(C9="Y",'G.A. 55'!E12,"0") -> 2193 | G9: RENT PAID AMOUNT MONTHLY | J9: =ENTRY!C21 -> 0 | N9: ="Address :- "&ENTRY!C11 -> Address :- GOVT SECONDARY SCHOOLDHANERU (BIKANER)
B10: AUGUST 17 | C10: Y | D10: =IF(C10="Y",'G.A. 55'!C13+ROUND((139%*'G.A. 55'!C13),0),"0") -> 52413 | E10: =IF(C10="Y",'G.A. 55'!E13,"0") -> 2193 | G10: HRA EXEMPTION AMOUNT | J10: =IF((J9*12)>D17*10%, MIN(ROUND(J9*12-(D17)*10%,0),J13),0) -> 0 | N10: The sum of RS. - | O10: =IF(OR(LEN(FLOOR(N27,1))=13,FLOOR(N27,1)<=0),"Out of range",PROPER(SUBSTITUTE(CONCATENATE(CHOOSE(MID(TEXT(INT(N27),REPT(0,12)),1,1)+1,"","one hundred ","two hundred ","three hundred ","four hundred ","five hundred ","six hundred ","seven hundred ","eight hundred ","nine hundred "),CHOOSE(MID(TEXT(INT(N27),REPT(0,12)),2,1)+1,"",CHOOSE(MID(TEXT(INT(N27),REPT(0,12)),3,1)+1,"ten","eleven","twelve","thirteen","fourteen","fifteen","sixteen","seventeen","eighteen","nineteen"),"twenty","thirty","forty","fifty","sixty","seventy","eighty","ninety"),IF(VALUE(MID(TEXT(INT(N27),REPT(0,12)),2,1))>1,CHOOSE(MID(TEXT(INT(N27),REPT(0,12)),3,1)+1,"","-one","-two","-three","-four","-five","-six","-seven","-eight","-nine"),IF(VALUE(MID(TEXT(INT(N27),REPT(0,12)),2,1))=0,CHOOSE(MID(TEXT(INT(N27),REPT(0,12)),3,1)+1,"","one","two","three","four","five","six","seven","eight","nine"),"")),IF(N27>=10^9," billion ",""),CHOOSE(MID(TEXT(INT(N27),REPT(0,12)),4,1)+1,"","one hundred ","two hundred ","three hundred ","four hundred ","five hundred ","six hundred ","seven hundred ","eight hundred ","nine hundred "),CHOOSE(MID(TEXT(INT(N27),REPT(0,12)),5,1)+1,"",CHOOSE(MID(TEXT(INT(N27),REPT(0,12)),6,1)+1,"ten","eleven","twelve","thirteen","fourteen","fifteen","sixteen","seventeen","eighteen","nineteen"),"twenty","thirty","forty","fifty","sixty","seventy","eighty","ninety"),IF(VALUE(MID(TEXT(INT(N27),REPT(0,12)),5,1))>1,CHOOSE(MID(TEXT(INT(N27),REPT(0,12)),6,1)+1,"","-one","-two","-three","-four","-five","-six","-seven","-eight","-nine"),IF(VALUE(MID(TEXT(INT(N27),REPT(0,12)),5,1))=0,CHOOSE(MID(TEXT(INT(N27),REPT(0,12)),6,1)+1,"","one","two","three","four","five","six","seven","eight","nine"),"")),IF(VALUE(MID(TEXT(INT(N27),REPT(0,12)),4,3))>0," million ",""),CHOOSE(MID(TEXT(INT(N27),REPT(0,12)),7,1)+1,"","one hundred ","two hundred ","three hundred ","four hundred ","five hundred ","six hundred ","seven hundred ","eight hundred ","nine hundred "),CHOOSE(MID(TEXT(INT(N27),REPT(0,12)),8,1)+1,"",CHOOSE(MID(TEXT(INT(N27),REPT(0,12)),9,1)+1,"ten","eleven","twelve","thirteen","fourteen","fifteen","sixteen","seventeen","eighteen","nineteen"),"twenty","thirty","forty","fifty","sixty","seventy","eighty","ninety"),IF(VALUE(MID(TEXT(INT(N27),REPT(0,12)),8,1))>1,CHOOSE(MID(TEXT(INT(N27),REPT(0,12)),9,1)+1,"","-one","-two","-three","-four","-five","-six","-seven","-eight","-nine"),IF(VALUE(MID(TEXT(INT(N27),REPT(0,12)),8,1))=0,CHOOSE(MID(TEXT(INT(N27),REPT(0,12)),9,1)+1,"","one","two","three","four","five","six","seven","eight","nine"),"")),IF(VALUE(MID(TEXT(INT(N27),REPT(0,12)),7,3))," thousand ",""),CHOOSE(MID(TEXT(INT(N27),REPT(0,12)),10,1)+1,"","one hundred ","two hundred ","three hundred ","four hundred ","five hundred ","six hundred ","seven hundred ","eight hundred ","nine hundred "),CHOOSE(MID(TEXT(INT(N27),REPT(0,12)),11,1)+1,"",CHOOSE(MID(TEXT(INT(N27),REPT(0,12)),12,1)+1,"ten","eleven","twelve","thirteen","fourteen","fifteen","sixteen","seventeen","eighteen","nineteen"),"twenty","thirty","forty","fifty","sixty","seventy","eighty","ninety"),IF(VALUE(MID(TEXT(INT(O16),REPT(0,12)),11,1))>1,CHOOSE(MID(TEXT(INT(N27),REPT(0,12)),12,1)+1,"","-one","-two","-three","-four","-five","-six","-seven","-eight","-nine"),IF(VALUE(MID(TEXT(INT(N27),REPT(0,12)),11,1))=0,CHOOSE(MID(TEXT(INT(N27),REPT(0,12)),12,1)+1,"","one","two","three","four","five","six","seven","eight","nine"),"")))," "," ")&IF(FLOOR(N27,1)>1," Rupees"," Rupees"))&IF(ISERROR(FIND(".",N27,1)),""," and "&PROPER(IF(LEN(LEFT(TRIM(MID(SUBSTITUTE($N$27,".",REPT(" ",255)),255,200)),2))=1,CHOOSE(1*LEFT(TRIM(MID(SUBSTITUTE($N$27,".",REPT(" ",255)),255,200)),2),"ten","twenty","thirty","forty","fifty","sixty","seventy","eighty","ninety")&" Paise","")&CONCATENATE(CHOOSE(MID(TEXT(INT(LEFT(TRIM(MID(SUBSTITUTE($N$27,".",REPT(" ",255)),255,200)),2)),REPT(0,12)),11,1)+1,"",CHOOSE(MID(TEXT(INT(LEFT(TRIM(MID(SUBSTITUTE($N$27,".",REPT(" ",255)),255,200)),2)),REPT(0,12)),12,1)+1,"ten","eleven","twelve","thirteen","fourteen","fifteen","sixteen","seventeen","eighteen","nineteen"),"twenty","thirty","forty","fifty","sixty","seventy","eighty","ninety"),IF(VALUE(MID(TEXT(INT(LEFT(TRIM(MID(SUBSTITUTE($N$27,".",REPT(" ",255)),255,200)),2)),REPT(0,12)),11,1))>1,CHOOSE(MID(TEXT(INT(LEFT(TRIM(MID(SUBSTITUTE($N$27,".",REPT(" ",255)),255,200)),2)),REPT(0,12)),12,1)+1,"","-one","-two","-three","-four","-five","-six","-seven","-eight","-nine")&" Paise",IF(LEFT(TRIM(MID(SUBSTITUTE($N$27,".",REPT(" ",255)),255,200)),2)="01","one Paise",IF(LEFT(TRIM(MID(SUBSTITUTE($N$27,".",REPT(" ",255)),255,200)),1)="0",CHOOSE(MID(TEXT(INT(LEFT(TRIM(MID(SUBSTITUTE($N$27,".",REPT(" ",255)),255,200)),2)),REPT(0,12)),12,1)+1,"","one","two","three","four","five","six","seven","eight","nine")&" Paise",""))))))) -> Out of range
B11: SEPTEMBER 17 | C11: Y | D11: =IF(C11="Y",'G.A. 55'!C14+ROUND((139%*'G.A. 55'!C14),0),"0") -> 52413 | E11: =IF(C11="Y",'G.A. 55'!E14,"0") -> 2193 | N11: =CONCATENATE("Towards the rent per Month of Rs. = ",N26, "/- From April 2017 To March 2018") -> Towards the rent per Month of Rs. = 0/- From April 2017 To March 2018
B12: OCTOBER 17 | C12: Y | D12: =IF(C12="Y",'G.A. 55'!C15+ROUND((139%*'G.A. 55'!C15),0),"0") -> 52413 | E12: =IF(C12="Y",'G.A. 55'!E15,"0") -> 2193 | N12: =CONCATENATE("Total Rs. ",N26* 12, "/- Balance Rs. ",N26* O29, "/- And advance Rs. ",N26*O30,"/-") -> Total Rs. 0/- Balance Rs. 0/- And advance Rs. 0/-
B13: NOVEMBER 17 | C13: Y | D13: =IF(C13="Y",'G.A. 55'!C16+ROUND((5%*'G.A. 55'!C16),0),"0") -> 60060 | E13: =IF(C13="Y",'G.A. 55'!E16,"0") -> 4576 | G13: Max. HRA exemption amount | J13: =E19 -> 37975
B14: DECEMBER 17 | C14: Y | D14: =IF(C14="Y",'G.A. 55'!C17+ROUND((5%*'G.A. 55'!C17),0),"0") -> 60060 | E14: =IF(C14="Y",'G.A. 55'!E17,"0") -> 4576 | G14: Rent receipt required for max. exemption | J14: =ROUND(((10%*D19)+E19),0) -> 103827 | K14: =ROUND(J14/C17, 0) -> 8652 | N14: =CONCATENATE("Rs. = ",N27, "/-") -> Rs. = 0/-
B15: JANUARY 18 | C15: Y | D15: =IF(C15="Y",'G.A. 55'!C18+ROUND((5%*'G.A. 55'!C18),0),"0") -> 60060 | E15: =IF(C15="Y",'G.A. 55'!E18,"0") -> 4576 | F15: IF YOU ARE NOT ELIGIBLE TO GET HRA EXEMPTION FOR COMPLETE YEAR THEN USE THIS SHEET
B16: FEBRUARY 18 | C16: Y | D16: =IF(C16="Y",'G.A. 55'!C19+ROUND((5%*'G.A. 55'!C19),0),"0") -> 60060 | E16: =IF(C16="Y",'G.A. 55'!E19,"0") -> 4576 | N16: Period: 01-04-2017 to 31-03-2018
C17: =COUNTIF(C5:C16, "Y") -> 12 | D17: =ROUND((SUM(D5:D16)),0) -> 650868 | E17: =ROUND((SUM(E5:E16)),0) -> 35592
D18: ='G.A. 55'!C24+'G.A. 55'!C25+'G.A. 55'!D24+'G.A. 55'!D25 -> 7647 | E18: ='G.A. 55'!E24+'G.A. 55'!E25 -> 2383 | G18: रसीद प्रिंट करने के लिए सीधा प्रिंट कमांड दें । | T18: (Signature of House Owner)
D19: =D17+D18 -> 658515 | E19: =E17+E18 -> 37975
N26: =J9 -> 0
N27: =N26*12 -> 0
N28: 2017-04-01 | O28: =V5-N28 -> 271
N29: =MOD(O28, 30) -> 1 | O29: =IF(N29>=15,(O28-N29)/30+1,(O28-N29)/30) -> 9
O30: =12-O29 -> 3
B32: मकान किराया भत्ता (HRA) की छूट
B33: यदि कोई कर्मचारी स्वयं के मकान में रहता हैं अथवा अथवा अन्य किसी के मकान में रहता है जिसके लिये उसके द्वारा कोई भी राशि किराये के रूप में भुगतान नहीं की जा रही है तो मकान किराया भत्ता पूर्णतः कर योग्य होगा। यदि कोई कर्मचारी किराये के मकान में रह रहा है तो कर्मचारी को मकान किराया भत्ते में निम्न में से सबसे कम राशि की छूट दी जावेगी।
B34: 1. वर्ष के दौरान प्राप्त वास्तविक मकान किराया भत्ता
B35: 2. वेतन (BP+DA) के 10% से अधिक चुकाया गया मकान किराया
B36: 3. वेतन का (BP+DA) 40% से अधिक चुकाया गया मकान किराया
B37: NOTE : मकान किराये में छूट हेतु वेतन से अभिप्राय मूल वेतन, मंहगाई भत्ते के योग से है।
B38: Remarks about HRA
B39: 1. Though incurring actual expenditure on payment of rent is a pre-requisite for claiming deduction under section 10(13A), it has been decided as an administrative measure that salaried employee drawing house rent allowance up to 3000 per month will be exempted from production of rent receipt. It may, however be noted that this concession is only for purpose of Tax deduction at source, and in the regular assessment of the employee, the Assessing Officer will be free make such enquiry as he deems fit for the purpose of satisfying himself that the employee has incurred actual expenditure on payment of rent.
B40: 2. यदि कर्मचारी द्वारा प्रतिवर्ष 1 लाख से अधिक मकान किराया चुकाया जाता है तो ऐसी स्थिति में उसे मकान मालिक का पेन नम्बर नियोक्ता को उपलब्ध कराना आवश्यक है। और यदि मकान मालिक के पास पेन नंबर उपलब्ध नहीं है तो मकान मालिक से इस आशय की घोषणा मय मकान मालिक के नाम एवं पता सहित प्राप्त कर नियोक्ता को उपलब्ध करानी होगी।
B41: 3. मकान किराये की छूट हेतु किरायानामा की प्रति नियोक्ता का उपलब्ध कराये जाने का कोई प्रावधान नहीं है।
B42: As per new circular of CBDT vide its Circlular No. 08/2013 F.No. 275/192/2013-IT(B) dated 10.10.2013 if you are a salaried and claiming HRA (House Rent Allowance exemption and the rent paid by you is more than Rs.1 Lakh per year then it is compulsory to provide PAN (Permanent Account Number) of your Landlord. Earlier the limit was capped Rs.15,000 per month as against the current limit of Rs.8,333 per month PAN of landlord is not necessary if assessee is paying rent below Rs.8,333/- per month. However, in that case it is always recommended that rent is paid either by cheque or bank transfer which will be a record for the assessee. Also, in case the Assessing Officer demands proofs, bank entries will prove to be a better substitute than rent receipts.

Sheet 16 NO.
A1: FORM NO. 16
A2: [(See Rule 31(1)(a)]
A3: PART-A
A4: Certificate under section 203 of the income-tax act, 1961 for Tax deducted at source on Salary.
A5: Name and address of the Employer | F5: Name and adress of the Employee
A6: =ENTRY!J14 -> ALTAF AHAMAD KHAN | F6: =COMPUTATION!E3 -> VIJAY
A7: =ENTRY!J12 -> AMARPURA | F7: =COMPUTATION!J3 -> TEACHER
A8: PAN of the Deductor | D8: TAN of the Deductor | F8: PAN of the Employee | I8: Employee Ref No.
A9: =ENTRY!J17 -> BPGLP1184D | D9: =ENTRY!J13 -> 2015V | F9: =COMPUTATION!M3 -> EFNPS7790B
A10: CIT (TDS) | F10: Assess. Year | H10: Peroid with the Employer
A11: Adress | B11: The Commissioner of Income Tax, Bikaner | F11: 2018-19 | H11: From | J11: To
A12: City | B12: BIKANER | D12: PIN Code | E12: 334001 | H12: 01-4-2017 | J12: 31-03-2018
A13: Summary of amount paid/credited and tax deducted at source thereon in respect of the employee
A14: Quarters | B14: Receipt Numbers of original quarterly statements of TDS under sub-secion (3) of section 200 | E14: Amount paid/ credited | F14: Amount of tax deducted (Rs.) | I14: Amount of tax deposited/ remitted (Rs.)
A15: Ist | E15: =SUM('G.A. 55'!R8:R10) -> 3000 | F15: =IF(E15="","NIL", E15) -> 3000 | I15: =F15 -> 3000
A16: IInd | E16: =SUM('G.A. 55'!R11:R13) -> 3000 | F16: =IF(E16="","NIL", E16) -> 3000 | I16: =F16 -> 3000
A17: IIIrd | E17: =SUM('G.A. 55'!R14:R16) -> 3000 | F17: =IF(E17="","NIL", E17) -> 3000 | I17: =F17 -> 3000
A18: IVth | E18: =SUM('G.A. 55'!R17:R25) -> 3000 | F18: =IF(E18="","NIL", E18) -> 3000 | I18: =F18 -> 3000
A19: TOTAL | E19: =SUM(E15:E18) -> 12000 | F19: =SUM(F15:F18) -> 12000 | I19: =SUM(I15:I18) -> 12000
A20: I. Details of tax deducted and deposited in the Central Government account through book adjustment
A21: (The Deductor to provide payment-wise details of tax deducted and deposited with respect to the deductee)
A22: S.N. | B22: Tax Deposited in respect of the deductee (Rs) | D22: Book identification number (BIN)
D23: Receipt numbers of form No. 24G | E23: DDO serial number in Form No. 24G | F23: Date of transfer voucher (dd/mm/yyyy) | I23: Status of matching with Form No. 24G
A24: 1 | B24: ='G.A. 55'!R8 -> 1000 | I24: =IF(D24>"0","Yes","-") -> -
A25: 2 | B25: ='G.A. 55'!R9 -> 1000 | I25: =IF(D25>"0","Yes","-") -> -
A26: 3 | B26: ='G.A. 55'!R10 -> 1000 | I26: -
A27: 4 | B27: ='G.A. 55'!R11 -> 1000 | I27: -
A28: 5 | B28: ='G.A. 55'!R12 -> 1000 | I28: -
A29: 6 | B29: ='G.A. 55'!R13 -> 1000 | I29: -
A30: 7 | B30: ='G.A. 55'!R14 -> 1000 | I30: -
A31: 8 | B31: ='G.A. 55'!R15 -> 1000 | I31: -
A32: 9 | B32: ='G.A. 55'!R16 -> 1000 | I32: -
A33: 10 | B33: ='G.A. 55'!R17 -> 1000 | I33: -
A34: 11 | B34: ='G.A. 55'!R18 -> 1000 | I34: -
A35: 12 | B35: ='G.A. 55'!R19 -> 1000 | I35: -
A36: 13 | B36: ='G.A. 55'!R20 -> 0 | I36: -
A37: 14 | B37: ='G.A. 55'!R24+'G.A. 55'!R25 -> 0 | I37: -
A38: Total | B38: =SUM(B24:B37) -> 12000
A39: II. Details of Tax deducted and deposited in Central Government Account through Challan.
A40: (The deducter to provide payment-wise details of tax deducted and deposited with respect to the deductee)
A41: S.N. | B41: Tax Deposited in respect on of the deductee (Rs) | D41: Challan identification number (CIN)
D42: BSR code of the Bank Branch | F42: Date on which tax deposited (dd/mm/yyyy) | H42: Challan Serial Number | J42: Status of matching with OLTAS
A43: 1
A44: 2
A45: 3
A46: 4
A47: 5
A48: 6
A49: 7
A50: 8
A51: 9
A52: 10
A53: 11
A54: 12
A55: 13
A56: 14
A57: Total | B57: =SUM(B43:B56) -> 0
A58: :: 2 ::
A59: Verification
A60: I | B60: =A6&"," -> ALTAF AHAMAD KHAN, | E60: Son/Daughter of | F60: =ENTRY!J15 -> 0 | J60: working in the
A61: capacity of | C61: =ENTRY!J10 -> HEADMASTER | F61: (designation) do hereby certify that a sum of
A62: Rs. | B62: =I19 -> 12000 | C62: =IF(OR(LEN(FLOOR(B62,1))=13,FLOOR(B62,1)<=0),"Out of range",PROPER(SUBSTITUTE(CONCATENATE(CHOOSE(MID(TEXT(INT(B62),REPT(0,12)),1,1)+1,"","one hundred ","two hundred ","three hundred ","four hundred ","five hundred ","six hundred ","seven hundred ","eight hundred ","nine hundred "),CHOOSE(MID(TEXT(INT(B62),REPT(0,12)),2,1)+1,"",CHOOSE(MID(TEXT(INT(B62),REPT(0,12)),3,1)+1,"ten","eleven","twelve","thirteen","fourteen","fifteen","sixteen","seventeen","eighteen","nineteen"),"twenty","thirty","forty","fifty","sixty","seventy","eighty","ninety"),IF(VALUE(MID(TEXT(INT(B62),REPT(0,12)),2,1))>1,CHOOSE(MID(TEXT(INT(B62),REPT(0,12)),3,1)+1,"","-one","-two","-three","-four","-five","-six","-seven","-eight","-nine"),IF(VALUE(MID(TEXT(INT(B62),REPT(0,12)),2,1))=0,CHOOSE(MID(TEXT(INT(B62),REPT(0,12)),3,1)+1,"","one","two","three","four","five","six","seven","eight","nine"),"")),IF(B62>=10^9," billion ",""),CHOOSE(MID(TEXT(INT(B62),REPT(0,12)),4,1)+1,"","one hundred ","two hundred ","three hundred ","four hundred ","five hundred ","six hundred ","seven hundred ","eight hundred ","nine hundred "),CHOOSE(MID(TEXT(INT(B62),REPT(0,12)),5,1)+1,"",CHOOSE(MID(TEXT(INT(B62),REPT(0,12)),6,1)+1,"ten","eleven","twelve","thirteen","fourteen","fifteen","sixteen","seventeen","eighteen","nineteen"),"twenty","thirty","forty","fifty","sixty","seventy","eighty","ninety"),IF(VALUE(MID(TEXT(INT(B62),REPT(0,12)),5,1))>1,CHOOSE(MID(TEXT(INT(B62),REPT(0,12)),6,1)+1,"","-one","-two","-three","-four","-five","-six","-seven","-eight","-nine"),IF(VALUE(MID(TEXT(INT(B62),REPT(0,12)),5,1))=0,CHOOSE(MID(TEXT(INT(B62),REPT(0,12)),6,1)+1,"","one","two","three","four","five","six","seven","eight","nine"),"")),IF(VALUE(MID(TEXT(INT(B62),REPT(0,12)),4,3))>0," million ",""),CHOOSE(MID(TEXT(INT(B62),REPT(0,12)),7,1)+1,"","one hundred ","two hundred ","three hundred ","four hundred ","five hundred ","six hundred ","seven hundred ","eight hundred ","nine hundred "),CHOOSE(MID(TEXT(INT(B62),REPT(0,12)),8,1)+1,"",CHOOSE(MID(TEXT(INT(B62),REPT(0,12)),9,1)+1,"ten","eleven","twelve","thirteen","fourteen","fifteen","sixteen","seventeen","eighteen","nineteen"),"twenty","thirty","forty","fifty","sixty","seventy","eighty","ninety"),IF(VALUE(MID(TEXT(INT(B62),REPT(0,12)),8,1))>1,CHOOSE(MID(TEXT(INT(B62),REPT(0,12)),9,1)+1,"","-one","-two","-three","-four","-five","-six","-seven","-eight","-nine"),IF(VALUE(MID(TEXT(INT(B62),REPT(0,12)),8,1))=0,CHOOSE(MID(TEXT(INT(B62),REPT(0,12)),9,1)+1,"","one","two","three","four","five","six","seven","eight","nine"),"")),IF(VALUE(MID(TEXT(INT(B62),REPT(0,12)),7,3))," thousand ",""),CHOOSE(MID(TEXT(INT(B62),REPT(0,12)),10,1)+1,"","one hundred ","two hundred ","three hundred ","four hundred ","five hundred ","six hundred ","seven hundred ","eight hundred ","nine hundred "),CHOOSE(MID(TEXT(INT(B62),REPT(0,12)),11,1)+1,"",CHOOSE(MID(TEXT(INT(B62),REPT(0,12)),12,1)+1,"ten","eleven","twelve","thirteen","fourteen","fifteen","sixteen","seventeen","eighteen","nineteen"),"twenty","thirty","forty","fifty","sixty","seventy","eighty","ninety"),IF(VALUE(MID(TEXT(INT(B62),REPT(0,12)),11,1))>1,CHOOSE(MID(TEXT(INT(B62),REPT(0,12)),12,1)+1,"","-one","-two","-three","-four","-five","-six","-seven","-eight","-nine"),IF(VALUE(MID(TEXT(INT(B62),REPT(0,12)),11,1))=0,CHOOSE(MID(TEXT(INT(B62),REPT(0,12)),12,1)+1,"","one","two","three","four","five","six","seven","eight","nine"),"")))," "," ")&IF(FLOOR(B62,1)>1," Rupees"," Rupees"))&IF(ISERROR(FIND(".",B62,1)),""," and "&PROPER(IF(LEN(LEFT(TRIM(MID(SUBSTITUTE('16 NO.'!$B$62,".",REPT(" ",255)),255,200)),2))=1,CHOOSE(1*LEFT(TRIM(MID(SUBSTITUTE('16 NO.'!$B$62,".",REPT(" ",255)),255,200)),2),"ten","twenty","thirty","forty","fifty","sixty","seventy","eighty","ninety")&" Paise","")&CONCATENATE(CHOOSE(MID(TEXT(INT(LEFT(TRIM(MID(SUBSTITUTE('16 NO.'!$B$62,".",REPT(" ",255)),255,200)),2)),REPT(0,12)),11,1)+1,"",CHOOSE(MID(TEXT(INT(LEFT(TRIM(MID(SUBSTITUTE('16 NO.'!$B$62,".",REPT(" ",255)),255,200)),2)),REPT(0,12)),12,1)+1,"ten","eleven","twelve","thirteen","fourteen","fifteen","sixteen","seventeen","eighteen","nineteen"),"twenty","thirty","forty","fifty","sixty","seventy","eighty","ninety"),IF(VALUE(MID(TEXT(INT(LEFT(TRIM(MID(SUBSTITUTE('16 NO.'!$B$62,".",REPT(" ",255)),255,200)),2)),REPT(0,12)),11,1))>1,CHOOSE(MID(TEXT(INT(LEFT(TRIM(MID(SUBSTITUTE('16 NO.'!$B$62,".",REPT(" ",255)),255,200)),2)),REPT(0,12)),12,1)+1,"","-one","-two","-three","-four","-five","-six","-seven","-eight","-nine")&" Paise",IF(LEFT(TRIM(MID(SUBSTITUTE('16 NO.'!$B$62,".",REPT(" ",255)),255,200)),2)="01","one Paise",IF(LEFT(TRIM(MID(SUBSTITUTE('16 NO.'!$B$62,".",REPT(" ",255)),255,200)),1)="0",CHOOSE(MID(TEXT(INT(LEFT(TRIM(MID(SUBSTITUTE('16 NO.'!$B$62,".",REPT(" ",255)),255,200)),2)),REPT(0,12)),12,1)+1,"","one","two","three","four","five","six","seven","eight","nine")&" Paise",""))))))) -> Twelve Thousand Rupees | H62: (in words) has been deducted
A63: and deposited to the credit of the Central Govt.. I further certify that the information given above is true, complete and
A64: correct and is based on the books of account, documents, TDS statement, TDS deposited and other available records.
A65: Place | C65: =ENTRY!J18 -> BIKANER
A66: Date | C66: =TODAY() -> 2017-12-28 | E66: Signature of person responsible for deduction of tax
A67: Designation | C67: =ENTRY!J10 -> HEADMASTER | E67: Full name | F67: =A6 -> ALTAF AHAMAD KHAN
A68: PART- B (Annexure)
A69: DETAILS OF SALARY PAID AND ANY OTHER INCOME AND TAX DEDUCTED
A70: 1. Gross salary
A71: (a) Salary as per provisions contained in section 17(1) | F71: =COMPUTATION!M4 -> 770988
A72: (b) Value of perquisites u/s 17(2) (as per Form No. 12BA, wherever applicable)
A73: (c) Profits in lieu of salary under section 17(3) (as per Form No. 12BA, wherever applicable) | F73: 0
A74: (d) Total (a+b+c) | H74: =F71+F72+F73 -> 770988
A75: 2. Less: Allowance to the extent exempt u/s 10 House Rent Allowance
A76: Allowance | D76: Rs.
A77: House Rent Allow. US10 (13 A) | D77: =IF(E77="0","",'G.A. 55'!E26) -> 37975 | E77: =ENTRY!D20 -> 0
A78: US10 (14) | E78: =ENTRY!C24 -> 0 | F78: =E77+E78 -> 0
A79: 3. Balance (1 - 2) | H79: =H74-F78 -> 770988
A80: 4. Deductions: U/s 16
A81: (a) | C81: Entertainment allowance | F81: =COMPUTATION!M7 -> 0
A82: (b) | C82: Tax on employment | F82: 0
A83: 5. Aggregate of 4 (a) and (b) | H83: =F81+F82 -> 0
A84: 6. Income chargeable under the head "salaries" (3-5) | J84: =H79-H83 -> 770988
A85: 7. Add: Any other income reported by employee
A86: Income | E86: Rs
A87: From House Property | E87: =COMPUTATION!K9-COMPUTATION!K11 -> 0
A88: Saving Bank A/C interest | E88: =SUM(COMPUTATION!B14:L14) -> 0 | H88: =E87+E88 -> 0
A89: 8. Gross total income (6+7) | J89: =J84+H88 -> 770988
A90: 9. Deductions under Chapter VI A
A91: (A) Section 80C, 80CCC and 80CCD
A92: (a) Section 80C | H92: Gross Amount | J92: Deductible Amount
A93: A | B93: 1 | C93: (A) | D93: GPF | F93: =COMPUTATION!G22 -> 
B94: 2 | D94: State Insurance | F94: =COMPUTATION!G17 -> 31800
B95: 3 | D95: Gr. Acc. Insurance | F95: =COMPUTATION!G23 -> 220
B96: 4 | D96: LIC + ULIP + PLI | F96: =COMPUTATION!G18+COMPUTATION!G24+COMPUTATION!L23 -> 0
B97: 5 | D97: PPF | F97: =COMPUTATION!G20 -> 0
B98: 6 | D98: Home Loan Installment (Capital) | F98: =COMPUTATION!G25 -> 0
B99: 7 | D99: Notified Bond Of NABARD | F99: =COMPUTATION!L21 -> 0
B100: 8 | D100: Pension Plan (US80ccc+US 80CCD)(1) | F100: =COMPUTATION!L17+COMPUTATION!L18 -> 66022
B101: 9 | D101: Tution Fee | F101: =COMPUTATION!L20 -> 0
B102: 10 | D102: NSC + Interest on NSC | F102: =COMPUTATION!L19+COMPUTATION!G19 -> 0
B103: 11 | D103: Sukanya Samridhi A/C | F103: =COMPUTATION!L22 -> 0
B104: 12 | D104: Fixed Deposit above 5 years | F104: =COMPUTATION!L24 -> 0
B105: 13 | D105: Mutual Fund | F105: =COMPUTATION!G21 -> 0 | H105: =SUM(F91:F105) -> 98042 | J105: =IF(H105<=150000, H105, 150000) -> 98042
B106: (B) Section 80CCD(2) | F106: =COMPUTATION!L26 -> 66022
B107: (C) Section 80CCD(1B) (RS.-50000/-) | F107: =COMPUTATION!L27 -> 0 | H107: =J105+F106+F107 -> 164064 | J107: =H107 -> 164064
H108: ………………… 3
A109: :: 3 ::
A110: (B) Other Sections (e.g. 80E, 80G etc.) under Chapter VIA | F110: Gross Amount | H110: Qualifying amount | J110: Deductible Amount
A111: 1 | B111: U/S 80D | F111: =COMPUTATION!M30 -> 0 | H111: =F111 -> 0
A112: 2 | B112: U/S 80DD | F112: =COMPUTATION!M31 -> 0 | H112: 0
A113: 3 | B113: U/S 80DDB | F113: =COMPUTATION!M32 -> 0 | H113: 0
A114: 4 | B114: U/S 80E | F114: =COMPUTATION!M33 -> 0 | H114: 0
A115: 5 | B115: U/S 80G | F115: =COMPUTATION!M34 -> 0 | H115: 0
A116: 6 | B116: U/S 80GG | H116: 0
A117: 7 | B117: U/S 80GGA | H117: 0
A118: 8 | B118: U/S 80U | F118: =COMPUTATION!M35 -> 0 | H118: 0
A119: 9 | B119: US 80TTA [Exempt Saving Bank Int. Max. RS. 10,000/-] | F119: =COMPUTATION!I14 -> 0 | H119: =COMPUTATION!M36 -> 0 | J119: =ROUND((H111+H112+H113+H114+H115+H116+H117+H118+H119),0) -> 0
A120: 10. Aggregate of deductible amount under chapter VIA | J120: =ROUND((J107+J119),0) -> 164064
A121: 11. Total income (8-10) | D121: (Roundup Figures of Rs 10) | J121: =ROUND((J89-J120),-1) -> 606920
A122: 12. Tax on total income | J122: =ROUND(IF(J121<=250000,0,IF(J121<=500000,(J121-250000)*0.05,IF(J121<=1000000,12500+(J121-500000)*0.2,IF(J121>1000000,112500+(J121-1000000)*0.3,"0")))),0) -> 33884
A123: 13. Rebate U/s 87 A (Taxable Income below Rs. 5,00,000/-) | H123: =COMPUTATION!M42 -> 0
A124: 14. Tax payable (12-13) | J124: =J122-H123 -> 33884
A125: 15. Education cess @ 3% (on tax computed at S.No. 12) | J125: =ROUND((J124*0.02),0)+ROUND((J124*0.01),0) -> 1017
A126: 16. Tax payable (14+15) [Round off U/s 288 B] | J126: =J124+J125 -> 34901
A127: 17. Less:- Relief under section 89 (Attach Form 10E) | J127: =COMPUTATION!M46 -> 0
A128: 18. Tax payable (14-15) | J128: =J126-J127 -> 34901
A129: 19. Tax deducted at source u/s 192 (1) | J129: =COMPUTATION!M49 -> 12000
A130: =IF(J128>J129,"Income Tax Payable",IF(J128<J129,"Income Tax Refundable","Income Tax Payble/Refundable")) -> Income Tax Payable | J130: =IF(J128>J129,J128-J129,J129-J128) -> 22901
A131: Verification
A132: I | B132: =A6&"," -> ALTAF AHAMAD KHAN, | E132: Son/Daughter of | F132: =F60 -> 0 | J132: working in the
A133: capacity of | C133: =ENTRY!J10 -> HEADMASTER | F133: (designation) do hereby certify that a sum of
A134: Rs. | B134: =I19 -> 12000 | C134: =IF(OR(LEN(FLOOR(B62,1))=13,FLOOR(B62,1)<=0),"Out of range",PROPER(SUBSTITUTE(CONCATENATE(CHOOSE(MID(TEXT(INT(B62),REPT(0,12)),1,1)+1,"","one hundred ","two hundred ","three hundred ","four hundred ","five hundred ","six hundred ","seven hundred ","eight hundred ","nine hundred "),CHOOSE(MID(TEXT(INT(B62),REPT(0,12)),2,1)+1,"",CHOOSE(MID(TEXT(INT(B62),REPT(0,12)),3,1)+1,"ten","eleven","twelve","thirteen","fourteen","fifteen","sixteen","seventeen","eighteen","nineteen"),"twenty","thirty","forty","fifty","sixty","seventy","eighty","ninety"),IF(VALUE(MID(TEXT(INT(B62),REPT(0,12)),2,1))>1,CHOOSE(MID(TEXT(INT(B62),REPT(0,12)),3,1)+1,"","-one","-two","-three","-four","-five","-six","-seven","-eight","-nine"),IF(VALUE(MID(TEXT(INT(B62),REPT(0,12)),2,1))=0,CHOOSE(MID(TEXT(INT(B62),REPT(0,12)),3,1)+1,"","one","two","three","four","five","six","seven","eight","nine"),"")),IF(B62>=10^9," billion ",""),CHOOSE(MID(TEXT(INT(B62),REPT(0,12)),4,1)+1,"","one hundred ","two hundred ","three hundred ","four hundred ","five hundred ","six hundred ","seven hundred ","eight hundred ","nine hundred "),CHOOSE(MID(TEXT(INT(B62),REPT(0,12)),5,1)+1,"",CHOOSE(MID(TEXT(INT(B62),REPT(0,12)),6,1)+1,"ten","eleven","twelve","thirteen","fourteen","fifteen","sixteen","seventeen","eighteen","nineteen"),"twenty","thirty","forty","fifty","sixty","seventy","eighty","ninety"),IF(VALUE(MID(TEXT(INT(B62),REPT(0,12)),5,1))>1,CHOOSE(MID(TEXT(INT(B62),REPT(0,12)),6,1)+1,"","-one","-two","-three","-four","-five","-six","-seven","-eight","-nine"),IF(VALUE(MID(TEXT(INT(B62),REPT(0,12)),5,1))=0,CHOOSE(MID(TEXT(INT(B62),REPT(0,12)),6,1)+1,"","one","two","three","four","five","six","seven","eight","nine"),"")),IF(VALUE(MID(TEXT(INT(B62),REPT(0,12)),4,3))>0," million ",""),CHOOSE(MID(TEXT(INT(B62),REPT(0,12)),7,1)+1,"","one hundred ","two hundred ","three hundred ","four hundred ","five hundred ","six hundred ","seven hundred ","eight hundred ","nine hundred "),CHOOSE(MID(TEXT(INT(B62),REPT(0,12)),8,1)+1,"",CHOOSE(MID(TEXT(INT(B62),REPT(0,12)),9,1)+1,"ten","eleven","twelve","thirteen","fourteen","fifteen","sixteen","seventeen","eighteen","nineteen"),"twenty","thirty","forty","fifty","sixty","seventy","eighty","ninety"),IF(VALUE(MID(TEXT(INT(B62),REPT(0,12)),8,1))>1,CHOOSE(MID(TEXT(INT(B62),REPT(0,12)),9,1)+1,"","-one","-two","-three","-four","-five","-six","-seven","-eight","-nine"),IF(VALUE(MID(TEXT(INT(B62),REPT(0,12)),8,1))=0,CHOOSE(MID(TEXT(INT(B62),REPT(0,12)),9,1)+1,"","one","two","three","four","five","six","seven","eight","nine"),"")),IF(VALUE(MID(TEXT(INT(B62),REPT(0,12)),7,3))," thousand ",""),CHOOSE(MID(TEXT(INT(B62),REPT(0,12)),10,1)+1,"","one hundred ","two hundred ","three hundred ","four hundred ","five hundred ","six hundred ","seven hundred ","eight hundred ","nine hundred "),CHOOSE(MID(TEXT(INT(B62),REPT(0,12)),11,1)+1,"",CHOOSE(MID(TEXT(INT(B62),REPT(0,12)),12,1)+1,"ten","eleven","twelve","thirteen","fourteen","fifteen","sixteen","seventeen","eighteen","nineteen"),"twenty","thirty","forty","fifty","sixty","seventy","eighty","ninety"),IF(VALUE(MID(TEXT(INT(B62),REPT(0,12)),11,1))>1,CHOOSE(MID(TEXT(INT(B62),REPT(0,12)),12,1)+1,"","-one","-two","-three","-four","-five","-six","-seven","-eight","-nine"),IF(VALUE(MID(TEXT(INT(B62),REPT(0,12)),11,1))=0,CHOOSE(MID(TEXT(INT(B62),REPT(0,12)),12,1)+1,"","one","two","three","four","five","six","seven","eight","nine"),"")))," "," ")&IF(FLOOR(B62,1)>1," Rupees"," Rupees"))&IF(ISERROR(FIND(".",B62,1)),""," and "&PROPER(IF(LEN(LEFT(TRIM(MID(SUBSTITUTE('16 NO.'!$B$62,".",REPT(" ",255)),255,200)),2))=1,CHOOSE(1*LEFT(TRIM(MID(SUBSTITUTE('16 NO.'!$B$62,".",REPT(" ",255)),255,200)),2),"ten","twenty","thirty","forty","fifty","sixty","seventy","eighty","ninety")&" Paise","")&CONCATENATE(CHOOSE(MID(TEXT(INT(LEFT(TRIM(MID(SUBSTITUTE('16 NO.'!$B$62,".",REPT(" ",255)),255,200)),2)),REPT(0,12)),11,1)+1,"",CHOOSE(MID(TEXT(INT(LEFT(TRIM(MID(SUBSTITUTE('16 NO.'!$B$62,".",REPT(" ",255)),255,200)),2)),REPT(0,12)),12,1)+1,"ten","eleven","twelve","thirteen","fourteen","fifteen","sixteen","seventeen","eighteen","nineteen"),"twenty","thirty","forty","fifty","sixty","seventy","eighty","ninety"),IF(VALUE(MID(TEXT(INT(LEFT(TRIM(MID(SUBSTITUTE('16 NO.'!$B$62,".",REPT(" ",255)),255,200)),2)),REPT(0,12)),11,1))>1,CHOOSE(MID(TEXT(INT(LEFT(TRIM(MID(SUBSTITUTE('16 NO.'!$B$62,".",REPT(" ",255)),255,200)),2)),REPT(0,12)),12,1)+1,"","-one","-two","-three","-four","-five","-six","-seven","-eight","-nine")&" Paise",IF(LEFT(TRIM(MID(SUBSTITUTE('16 NO.'!$B$62,".",REPT(" ",255)),255,200)),2)="01","one Paise",IF(LEFT(TRIM(MID(SUBSTITUTE('16 NO.'!$B$62,".",REPT(" ",255)),255,200)),1)="0",CHOOSE(MID(TEXT(INT(LEFT(TRIM(MID(SUBSTITUTE('16 NO.'!$B$62,".",REPT(" ",255)),255,200)),2)),REPT(0,12)),12,1)+1,"","one","two","three","four","five","six","seven","eight","nine")&" Paise",""))))))) -> Twelve Thousand Rupees | F134: (in words) has beeen deducted and deposited to the
A135: credit of the Central Government. I further certify that the information given above is true, complete and correct and is based on the books of account, documents, TDS statement, TDS deposited and other available records.
A136: Place | C136: =C65 -> BIKANER
A137: Date | C137: =TODAY() -> 2017-12-28 | E137: Signature of person responsible for deduction of tax
A138: Designation | C138: =C133 -> HEADMASTER | E138: Full name | F138: =A6 -> ALTAF AHAMAD KHAN

Sheet 89(1)form
A1: CALCULATION OF SALARY ARREAR RELIEF UNDER SECTION 89 (1) | Q1: 1- loZizFke vius ,fj;j dks xr foÙkh; o"kksZa ds vuqlkj foHkkftr djsaA | U1: धारा US 89 की छूट का नियम
A2: NAME | D2: =COMPUTATION!E3 -> VIJAY | U2: यदि कर्मचारी को गत वर्ष का कोई एरियर इस वर्ष मेँ प्राप्त हुआ है तो वह गत वर्ष में कर योग्य होगा बर्शते वह राशि उपार्जित होने वाले वर्ष में पहले ही कर योग्य न की गई हो तो एरियर पर धारा 89 की छूट का दावा किया जा सकता है I
A3: ADDRESS | D3: =ENTRY!C11 -> GOVT SECONDARY SCHOOLDHANERU (BIKANER)
A4: PAN | D4: ='16 NO.'!F9 -> EFNPS7790B | H4: CATEGORY | L4: Indian Resident | Q4: 2- vc lEcfU/kr foÙkh; o"kksZa ds QkWeZ 16 vFkok ITR ls dj ;ksX; vk; dks lEcfU/kr lsYl esa Hkjuk gSA
A5: Total Taxable Income including Arrear Received in FY 2017-18 | L5: =COMPUTATION!M40 -> 606920
A6: Year-wise Breakup of Arrears received and taxable income
A7: Financial Year | D7: Taxable Income of the relevant F.Y. without the arrears or advance (Rs.) | H7: Amount of Arrears or Advance received against each Financial Year (Rs.) | L7: Total Taxable Income of the relevant F.Y. with the arrears or advance (Rs.)
Q9: 3- dj ;ksX; vk; og vk; gS ftl ij ml foÙkh; o"kZ esa fu/kkZfjr vk;dj nj ls vk;dj dh x.kuk dh tkrh gSA
A11: 2016-17 | L11: =D11+H11 -> 0
A12: 2015-16 | L12: 0
A13: 2014-15 | L13: 0 | Q13: 4- vc bl QkWeZ esa lEcfU/kr foÙkh; o"kZ dh dj ;ksX; vk; ,oa ml o"kZ ls lEcfU/kr ,fj;j dh jkf'k HkjsaA /;ku jgs foÙkh; o"kZ 2017&18 ds fy, Hkjh x;h dj ;ksX; vk; esa lEiw.kZ ,fj;j dh jkf'k tqMh gksA
A14: 2013-14 | L14: 0
A15: 2012-13 | L15: 0
A16: Total | D16: =SUM(D11:G15) -> 0 | H16: =SUM(H11:K15) -> 0 | L16: 0

Sheet Form10E
A1: FORM NO. 10 E (See rule 21AA)
A2: Form for furnishing particulars of income undr scetion 192(2A) for year ending 31st March 2018 for claiming relief under section 89(1) by a Government servant or an employee in a company, co-operative society, local authority, university, institution, association or body.
A3: Name | D3: =PROPER(IF('89(1)form'!D2="","",'89(1)form'!D2)) -> Vijay
A4: Address | D4: =PROPER(IF('89(1)form'!D3="","",'89(1)form'!D3)) -> Govt Secondary Schooldhaneru (Bikaner)
A5: PAN | D5: =UPPER(IF('89(1)form'!D4="","",'89(1)form'!D4)) -> EFNPS7790B | I5: Status | K5: Indian Resident
A7: Particulars of Income referred to in rule 21A of the Income tax Rules, 1962, during the previous year relevant to assessment year 2018-19
A8: 1. (a) Salary received in arrears or in advance during 2017-18 in accordance with the provision of sub-rule (2) of rule 21A | L8: ='89(1)form'!H16 -> 0
A9: (b) Payment in the nature of gratuity in respect of past services, extending over a period of not less than 5 years in accordance with the provisions of sub-rule (3) of rule 21A | L9: Not applicable
A10: (c) Payment in the nature of compensation from the employer or former employer at or in connection with termination of employment after continuous service of not less than 3 years in accordance with the provisions of sub-rule (4) of rule 21A | L10: Not applicable
A11: (d) Payment in commutation of pension in accordance with the provisions of sub-rule (5) of rule 21A | L11: Not applicable
A12: 2. Detailed particulars of payments referred to above may be given in Annexure I, II, IIA, III or IV as the case may be | L12: Annexure- I
A13: Verification
A14: I do hereby declare that what is stated above is true to the best of my knowledge and belief. Verified today
A16: Date: | B16: =TODAY() -> 2017-12-28
K17: Signature of the employee
A19: ANNEXURE - I
A20: 1. Total net taxable Income excluding Salary received in Arrears or advance | L20: =L22-L21 -> 606920
A21: 2. salary received in arrears or advance | L21: =L8 -> 0
A22: 3. Total Income (as increased by salary received in arrears or advance) (Add item 1 and item 2) | L22: ='89(1)form'!L5 -> 606920
A23: 4. Tax on total income (as per item 3) | L23: =COMPUTATION!M45 -> 34901
A24: 5. Tax on total income (as per item 1) | L24: =K48 -> 34901
A25: 6. Tax on salary received in arrears or advance (Difference of item 4 and item 5) | L25: =L23-L24 -> 0
A26: 7. Tax computed in accordance with Table "A" (Brought from column 7 of Table "A") | L26: =M37 -> 0
A27: 8. Relief under section 89 (1) (Indicate the difference between the amounts mentioned against items 6 and 7) | L27: =IF(L8>0, L25-L26, 0) -> 0
A29: TABLE "A" (See item 7 of Annexure I)
A30: Previous Year(s) | C30: Total Net Taxable income of the relevant previous year | E30: salary received in arrears or advance relating to the relevant previous year as mentioned in col. (1) | G30: Total income (as increased by salry received in arrears or advance) or the relevant previous year mentioned in col. (1) (Add col. 2 and 3) | I30: Tax on total income (as per col. 2) | K30: Tax on total income (as per col. 4) | M30: Difference in tax (Amount under col. 6 minus amount under col. 5)
A31: 1 | C31: 2 | E31: 3 | G31: 4 | I31: 5 | K31: 6 | M31: 7
A32: 2012-13 | C32: =ROUND('89(1)form'!D15, -1) -> 0 | E32: =ROUND('89(1)form'!H15, -1) -> 0 | G32: =C32+E32 -> 0 | I32: =SUM(I41:J41) -> 0 | K32: =SUM(K41:L41) -> 0 | M32: =K32-I32 -> 0
A33: 2013-14 | C33: =ROUND('89(1)form'!D14, -1) -> 0 | E33: =ROUND('89(1)form'!H14, -1) -> 0 | G33: =C33+E33 -> 0 | I33: =SUM(I42:J42) -> 0 | K33: =SUM(K42:L42) -> 0 | M33: =K33-I33 -> 0
A34: 2014-15 | C34: =ROUND('89(1)form'!D13, -1) -> 0 | E34: =ROUND('89(1)form'!H13, -1) -> 0 | G34: =C34+E34 -> 0 | I34: =SUM(I43:J43) -> 0 | K34: =SUM(K43:L43) -> 0 | M34: =K34-I34 -> 0
A35: 2015-16 | C35: =ROUND('89(1)form'!D12, -1) -> 0 | E35: =ROUND('89(1)form'!H12, 0) -> 0 | G35: =C35+E35 -> 0 | I35: =SUM(I44:J44) -> 0 | K35: =SUM(K44:L44) -> 0 | M35: =K35-I35 -> 0
A36: 2016-17 | C36: =ROUND('89(1)form'!D11, -1) -> 0 | E36: =ROUND('89(1)form'!H11, -1) -> 0 | G36: =C36+E36 -> 0 | I36: =SUM(I45:J45) -> 0 | K36: =SUM(K45:L45) -> 0 | M36: =K36-I36 -> 0
A37: Total | M37: =M32+M33+M34+M35+M36 -> 0
A41: 2012-13 | I41: =IF(C32>1000000, 130000+(C32-1000000)*0.3, IF(C32>500000, 30000+(C32-500000)*0.2, IF(C32>200000, (C32-200000)*0.1, 0))) -> 0 | J41: =ROUND(I41*0.03, 0) -> 0 | K41: =IF(G32>1000000, 130000+(G32-1000000)*0.3, IF(G32>500000, 30000+(G32-500000)*0.2, IF(G32>200000, (G32-200000)*0.1, 0))) -> 0 | L41: =ROUND(K41*0.03, 0) -> 0
A42: 2013-14 | I42: =IF(C33>1000000, 130000+(C33-1000000)*0.3, IF(C33>500000, 30000+(C33-500000)*0.2, IF(C33>220000, (C33-220000)*0.1, 0))) -> 0 | J42: 0 | K42: =IF(G33>1000000, 130000+(G33-1000000)*0.3, IF(G33>500000, 30000+(G33-500000)*0.2, IF(G33>220000, (G33-220000)*0.1, 0))) -> 0 | L42: =ROUND(K42*0.03, 0) -> 0
A43: 2014-15 | I43: =IF(C34>1000000, 125000+(C34-1000000)*0.3, IF(C34>500000, 25000+(C34-500000)*0.2, IF(C34>270000, (C34-270000)*0.1, 0))) -> 0 | J43: 0 | K43: =IF(G34>1000000, 125000+(G34-1000000)*0.3, IF(G34>500000, 25000+(G34-500000)*0.2, IF(G34>270000, (G34-270000)*0.1, 0))) -> 0 | L43: =ROUND(K43*0.03, 0) -> 0
A44: 2015-16 | I44: =IF(C35>1000000, 125000+(C35-1000000)*0.3, IF(C35>500000, 25000+(C35-500000)*0.2, IF(C35>270000, (C35-270000)*0.1, 0))) -> 0 | J44: 0 | K44: =IF(G35>1000000, 125000+(G35-1000000)*0.3, IF(G35>500000, 25000+(G35-500000)*0.2, IF(G35>270000, (G35-270000)*0.1, 0))) -> 0 | L44: =ROUND(K44*0.03, 0) -> 0
A45: 2016-17 | I45: =IF(C36>1000000, 125000+(C36-1000000)*0.3, IF(C36>500000, 25000+(C36-500000)*0.2, IF(C36>300000, (C36-300000)*0.1, 0))) -> 0 | J45: 0 | K45: =IF(G36>1000000, 125000+(G36-1000000)*0.3, IF(G36>500000, 25000+(G36-500000)*0.2, IF(G36>300000, (G36-300000)*0.1, 0))) -> 0 | L45: =ROUND(K45*0.03, 0) -> 0
G46: ='89(1)form'!L5-L8 -> 606920 | I46: =IF(G46>1000000, 125000+(G46-1000000)*0.3, IF(G46>500000, 12500+(G46-500000)*0.2, IF(G46>250000, (G46-250000)*0.05, 0))) -> 33884 | J46: 1017
I47: =IF(G46<350001, 2500, 0) -> 0 | J47: 0
I48: =IF(I46>I47, I46-I47, 0) -> 33884 | J48: =ROUND(I48*0.03, 0) -> 1017 | K48: =ROUND(I48+J48, 0) -> 34901
